Workbook

Sheet Ansicht
B2: Erwartungswerte der Kursentwicklung
B4: Instrument: | C4: Bitcoin
B5: Datum:
B7: Erwartungswerte für die prozentuale Kursentwicklung in den nächsten x Tagen,
B8: berechnet auf Basis des Abstands des aktuellen Kurses von gleitenden Durchschnitten: | J8: Zuerst aktuelle Kurse in Tabelle "Kurse" eintragen!
J9: Es reicht der Schlusskurs.
B10: Roh (nicht trendbereinigt): | J10: Die Kurse gibt es hier:
C11: in 7 Tagen | D11: in 14 Tagen | E11: in 30 Tagen | F11: in 90 Tagen | J11: https://www.ariva.de/xbt-eur_bitcoin_-_euro-kurs/historische_kurse?go=1&boerse_id=163&month=&clean_split=1&clean_bezug=1
B12: SMA20 | C12: 0.09117450653 | D12: 0.1170164959 | E12: 0.1000193567 | F12: 0.4040896735
B13: SMA50 | C13: 0.04683651346 | D13: 0.06547290879 | E13: 0.08109869088 | F13: 0.3483735375
B14: SMA100 | C14: 0.0299987806 | D14: 0.05442919202 | E14: 0.1412839913 | F14: 0.2598135038
B15: SMA200 | C15: 0.04383199109 | D15: 0.08234475416 | E15: 0.1480865229 | F15: 0.2839972303
B16: Mittelwert | C16: 0.05296044792 | D16: 0.07981583771 | E16: 0.1176221405 | F16: 0.3240684863
B18: Trendbereinigt:
C19: in 7 Tagen | D19: in 14 Tagen | E19: in 30 Tagen | F19: in 90 Tagen
B20: SMA20 | C20: 0.06833626616 | D20: 0.06944497268 | E20: -0.01567528049 | F20: -0.04823884602
B21: SMA50 | C21: 0.02347890528 | D21: 0.01653312096 | E21: -0.03750482307 | F21: -0.1087109648
B22: SMA100 | C22: 0.006278851923 | D22: 0.0051104529 | E22: 0.02349999803 | F22: -0.1876948156
B23: SMA200 | C23: 0.02180245369 | D23: 0.03686273266 | E23: 0.03550667493 | F23: -0.1500670451
B24: Mittelwert | C24: 0.02997411926 | D24: 0.0319878198 | E24: 0.001456642349 | F24: -0.1236779179
B26: Aktuelle Werte (prozentualer Abstand Kurs zu gleitendem Durchschnitt):
B27: SMA20 | C27: 0.3037631717
B28: SMA50 | C28: 0.4232937542
B29: SMA100 | C29: 0.3995458136
B30: SMA200 | C30: 0.5470129932
B33: Warnhinweis:
B34: Die Erwartungswerte zeigen ausschließlich, wie sich die Kurse nach der aktuell vorliegenden Konstellation in der Vergangenheit entwickelt hätten und sind keine Handelsempfehlung. Die berechneten Werte können die Zukunft nicht zuverlässig prognostizieren. Weiterhin ist bei Spekulationen zu beachten, dass zum Teil hohe Handelsgebühren anfallen und zusätzlich erwirtschaftet werden müssen.
B36: Diese Berechnungen wurden mit einem Programm der IndexRennen GmbH erstellt.

Sheet PrognoseMatrix (hidden)
C2: Prognose SMA20 | J2: Prognose SMA50 | Q2: Prognose SMA100 | X2: Prognose SMA200
A3: Abstand Kurs (bis) | B3: Mitte | C3: 7 Tage | D3: 14 Tage | E3: 30 Tage | F3: 90 Tage | H3: Abstand Kurs (bis) | I3: Mitte | J3: 7 Tage | K3: 14 Tage | L3: 30 Tage | M3: 90 Tage | O3: Abstand Kurs (bis) | P3: Mitte | Q3: 7 Tage | R3: 14 Tage | S3: 30 Tage | T3: 90 Tage | V3: Abstand Kurs (bis) | W3: Mitte | X3: 7 Tage | Y3: 14 Tage | Z3: 30 Tage | AA3: 90 Tage
A4: -0.1388038738 | B4: -0.1815827112 | C4: 0.07893812656 | D4: 0.1800106764 | E4: 0.4014064074 | F4: 0.6664403677 | H4: -0.2323617755 | I4: -0.2948686057 | J4: 0.07940547168 | K4: 0.1745918393 | L4: 0.4179691374 | M4: 0.6444894075 | O4: -0.3445254559 | P4: -0.4216416177 | Q4: 0.07614416629 | R4: 0.1720305979 | S4: 0.3754846454 | T4: 0.4475703835 | V4: -0.4945492079 | W4: -0.5741377096 | X4: 0.06971687078 | Y4: 0.1340155154 | Z4: 0.2105405033 | AA4: 0.1461795717
A5: -0.08973187936 | B5: -0.1099668745 | C5: 0.05580978468 | D5: 0.09731797129 | E5: 0.2068780512 | F5: 0.6844761372 | H5: -0.1604367815 | I5: -0.189926039 | J5: 0.04314846545 | K5: 0.08185753971 | L5: 0.1713010818 | M5: 0.6411598921 | O5: -0.2418390599 | P5: -0.2854127612 | Q5: 0.05236764997 | R5: 0.09610036016 | S5: 0.2157431245 | T5: 0.6076031327 | V5: -0.3521970689 | W5: -0.407283338 | X5: 0.04638329521 | Y5: 0.1115400195 | Z5: 0.3001522422 | AA5: 0.7845187187
A6: -0.0533827832 | B6: -0.0703020863 | C6: 0.0288933143 | D6: 0.05671187863 | E6: 0.1108972356 | F6: 0.5225323439 | H6: -0.1081619337 | I6: -0.1357199855 | J6: 0.03812270612 | K6: 0.06226182356 | L6: 0.08712773025 | M6: 0.5737050772 | O6: -0.177025186 | P6: -0.2052160785 | Q6: 0.02060673758 | R6: 0.04086523131 | S6: 0.08313117176 | T6: 0.5173199177 | V6: -0.2447100115 | W6: -0.2941228973 | X6: 0.015756879 | Y6: 0.03387931362 | Z6: 0.1273525059 | AA6: 0.5989114046
A7: -0.02946165691 | B7: -0.03986532868 | C7: 0.008179187775 | D7: 0.03920329735 | E7: 0.09009873122 | F7: 0.4782447219 | H7: -0.06235935547 | I7: -0.08464071244 | J7: 0.02570781112 | K7: 0.06120892614 | L7: 0.1035290211 | M7: 0.5529209971 | O7: -0.122203154 | P7: -0.1474736245 | Q7: 0.02227892913 | R7: 0.04220964387 | S7: 0.09885410219 | T7: 0.7019743919 | V7: -0.1648109636 | W7: -0.2022720667 | X7: 0.02259714901 | Y7: 0.04691689461 | Z7: 0.1133293957 | AA7: 0.8951923251
A8: -0.0104388129 | B8: -0.01910513814 | C8: 0.01710476726 | D8: 0.03094004653 | E8: 0.1003610715 | F8: 0.5580396056 | H8: -0.02442553191 | I8: -0.04198145777 | J8: 0.0157319326 | K8: 0.04289389402 | L8: 0.1389115304 | M8: 0.6903969646 | O8: -0.05892802688 | P8: -0.08870433241 | Q8: 0.01532931067 | R8: 0.03238575161 | S8: 0.101060845 | T8: 0.8520733118 | V8: -0.1012156976 | W8: -0.1284895497 | X8: 0.01465849672 | Y8: 0.03514363617 | Z8: 0.09673215449 | AA8: 0.9479221702
A9: 0.007986328188 | B9: -0.0004702721628 | C9: -0.002124128165 | D9: 0.003612512955 | E9: 0.05244040117 | F9: 0.4172926843 | H9: 0.005026950615 | I9: -0.006744721907 | J9: 0.001760060317 | K9: 0.01003966108 | L9: 0.07375535369 | M9: 0.5012959242 | O9: 0 | P9: -0.02831171241 | Q9: 0.01385551691 | R9: 0.01780011505 | S9: 0.08219756931 | T9: 0.4528951645 | V9: -0.02801111786 | W9: -0.07084077736 | X9: 0.01526605897 | Y9: 0.02855942771 | Z9: 0.08106148243 | AA9: 0.4813373387
A10: 0.03092222482 | B10: 0.01908439684 | C10: -0.002375166863 | D10: 0.01247614622 | E10: 0.06117036566 | F10: 0.4297708273 | H10: 0.04683736513 | I10: 0.02430039588 | J10: 0.00397876557 | K10: 0.004398272373 | L10: 0.04747474939 | M10: 0.3006757498 | O10: 0.05059843725 | P10: 0.01979846228 | Q10: 0.001902146847 | R10: 0.009111101739 | S10: 0.004667660221 | T10: 0.2785965502 | V10: 0.0346653969 | W10: 0 | X10: -0.005261448212 | Y10: -0.02274332754 | Z10: 0.005099623464 | AA10: 0.04135882482
A11: 0.05939376877 | B11: 0.04467597337 | C11: -0.008776834235 | D11: -0.007733130362 | E11: 0.03190220147 | F11: 0.3226353824 | H11: 0.1025008255 | I11: 0.07570147457 | J11: 0.003738632426 | K11: 0.01381078642 | L11: 0.02826252021 | M11: 0.1843783408 | O11: 0.1290036459 | P11: 0.08672613275 | Q11: 0.004792476073 | R11: 0.0119088022 | S11: 0.03290798515 | T11: 0.2264478207 | V11: 0.1364387658 | W11: 0.09326312437 | X11: 0.002145602135 | Y11: 0.002729458036 | Z11: 0.01699493267 | AA11: 0.06503335387
A12: 0.1181380649 | B12: 0.08362867867 | C12: 0.008963512257 | D12: 0.00864736177 | E12: 0.03770460561 | F12: 0.1730094105 | H12: 0.1858281155 | I12: 0.136225707 | J12: -0.002690258669 | K12: 0.00149386609 | L12: 0.05036095157 | M12: 0.1998954415 | O12: 0.2806016125 | P12: 0.1902403629 | Q12: -0.002344945213 | R12: 0.01347409468 | S12: 0.03505840898 | T12: 0.1210569367 | V12: 0.2992333358 | W12: 0.2035471469 | X12: 0.007700223476 | Y12: 0.02297382802 | Z12: 0.05771354586 | AA12: 0.1444633901
A13: 0.8088727273 | B13: 0.1768287849 | C13: 0.04376984015 | D13: 0.05452847108 | E13: 0.06408730149 | F13: 0.2708437145 | H13: 1.2399 | I13: 0.2948262349 | J13: 0.0246724952 | K13: 0.03684126958 | L13: 0.06734306365 | M13: 0.281927228 | O13: 0.8176185455 | P13: 0.4142260423 | Q13: 0.03226729855 | R13: 0.05730169266 | S13: 0.1487344205 | T13: 0.2695455849 | V13: 1.158062809 | W13: 0.4281913651 | X13: 0.03133224696 | Y13: 0.06180544943 | Z13: 0.1168220937 | AA13: 0.2357256562
A15: Mittelwert | C15: =AVERAGE(C4:C13) -> 0.02283824037 | D15: =AVERAGE(D4:D13) -> 0.04757152318 | E15: 0.1156946372 | F15: 0.4523285195 | H15: Mittelwert | J15: =AVERAGE(J4:J13) -> 0.02335760818 | K15: =AVERAGE(K4:K13) -> 0.04893978783 | L15: 0.1186035139 | M15: 0.4570845023 | O15: Mittelwert | Q15: =AVERAGE(Q4:Q13) -> 0.02371992868 | R15: =AVERAGE(R4:R13) -> 0.04931873912 | S15: 0.1177839933 | T15: 0.4475083195 | V15: Mittelwert | X15: =AVERAGE(X4:X13) -> 0.0220295374 | Y15: =AVERAGE(Y4:Y13) -> 0.0454820215 | Z15: 0.112579848 | AA15: 0.4340642754

Sheet Entwicklung (hidden)
C1: =AVERAGE(C22:C3697) -> 0.02643377026 | D1: =AVERAGE(D22:D3763) -> 0.05277385362 | E1: =AVERAGE(E22:E3747) -> 0.1288423264 | F1: =AVERAGE(F22:F3770) -> 0.4947722851
A2: Datum | B2: Kurs | C2: Entw. 7 Tage | D2: Entw. 14 Tage | E2: Entw. 30 Tage | F2: Entw. 90 Tage | G2: Abst SMA 20
A3: 2011-08-25 | B3: 7.65 | C3: 0.01960784314 | D3: -0.2810457516 | E3: -0.4901960784 | F3: -0.739869281 | G3: 0
A4: 2011-08-26 | B4: 7.5 | C4: -0.2 | D4: -0.2 | E4: -0.4093333333 | F4: -0.7466666667 | G4: 0
A5: 2011-08-27 | B5: 7.5 | C5: -0.192 | D5: 0 | E5: -0.348 | F5: -0.72 | G5: 0
A6: 2011-08-28 | B6: 6 | C6: 0.25 | D6: -0.1833333333 | E6: -0.27 | F6: -0.6666666667 | G6: 0
A7: 2011-08-29 | B7: 6.49 | C7: -0.1063174114 | D7: -0.2326656394 | E7: -0.3389830508 | F7: -0.6995377504 | G7: 0
A8: 2011-08-30 | B8: 6.5 | C8: 0.04615384615 | D8: -0.2476923077 | E8: -0.3553846154 | F8: -0.6923076923 | G8: 0
A9: 2011-08-31 | B9: 6.48 | C9: -0.2592592593 | D9: -0.3657407407 | E9: -0.3271604938 | F9: -0.6558641975 | G9: 0
A10: 2011-09-01 | B10: 7.8 | C10: -0.2948717949 | D10: -0.5128205128 | E10: -0.5064102564 | F10: -0.7012820513 | G10: 0
A11: 2011-09-02 | B11: 6 | C11: 0 | D11: -0.2766666667 | E11: -0.3833333333 | F11: -0.6083333333 | G11: 0
A12: 2011-09-03 | B12: 6.06 | C12: 0.2376237624 | D12: -0.3894389439 | E12: -0.3729372937 | F12: -0.6501650165 | G12: 0
A13: 2011-09-04 | B13: 7.5 | C13: -0.3466666667 | D13: -0.4533333333 | E13: -0.5 | F13: -0.6746666667 | G13: 0
A14: 2011-09-05 | B14: 5.8 | C14: -0.1413793103 | D14: -0.3189655172 | E14: -0.3965517241 | F14: -0.6137931034 | G14: 0
A15: 2011-09-06 | B15: 6.8 | C15: -0.2808823529 | D15: -0.3823529412 | E15: -0.4558823529 | F15: -0.6558823529 | G15: 0
A16: 2011-09-07 | B16: 4.8 | C16: -0.14375 | D16: 0.04166666667 | E16: -0.21875 | F16: -0.5208333333 | G16: 0
A17: 2011-09-08 | B17: 5.5 | C17: -0.3090909091 | D17: -0.2727272727 | E17: -0.2763636364 | F17: -0.5818181818 | G17: 0
A18: 2011-09-09 | B18: 6 | C18: -0.2766666667 | D18: -0.3166666667 | E18: -0.3533333333 | F18: -0.6216666667 | G18: 0
A19: 2011-09-10 | B19: 7.5 | C19: -0.5066666667 | D19: -0.48 | E19: -0.5853333333 | F19: -0.6666666667 | G19: 0
A20: 2011-09-11 | B20: 4.9 | C20: -0.1632653061 | D20: -0.09591836735 | E20: -0.2857142857 | F20: -0.5244897959 | G20: 0
A21: 2011-09-12 | B21: 4.98 | C21: -0.2068273092 | D21: -0.01807228916 | E21: -0.3975903614 | F21: -0.5361445783 | G21: 0
A22: 2011-09-13 | B22: 4.89 | C22: -0.1411042945 | D22: -0.1042944785 | E22: -0.427402863 | F22: -0.4703476483 | G22: 0.2949897751
A23: 2011-09-14 | B23: 4.11 | C23: 0.2165450122 | D23: 0.04379562044 | E23: -0.2262773723 | F23: -0.3722627737 | G23: 0.4976885645
A24: 2011-09-15 | B24: 3.8 | C24: 0.05263157895 | D24: 0.1026315789 | E24: -0.1631578947 | F24: -0.3684210526 | G24: 0.5711842105
A25: 2011-09-16 | B25: 4.34 | C25: -0.05529953917 | D25: 0.004608294931 | E25: -0.2695852535 | F25: -0.4239631336 | G25: 0.3392857143
A26: 2011-09-17 | B26: 3.7 | C26: 0.05405405405 | D26: 0.04054054054 | E26: -0.2189189189 | F26: -0.3324324324 | G26: 0.5398648649
A27: 2011-09-18 | B27: 4.1 | C27: 0.08048780488 | D27: -0.09756097561 | E27: -0.512195122 | F27: -0.4243902439 | G27: 0.3604878049
A28: 2011-09-19 | B28: 3.95 | C28: 0.2379746835 | D28: -0.03797468354 | E28: -0.3189873418 | F28: -0.3493670886 | G28: 0.3798734177
A29: 2011-09-20 | B29: 4.2 | C29: 0.04285714286 | D29: -0.1071428571 | E29: -0.4166666667 | F29: -0.3333333333 | G29: 0.2705952381
A30: 2011-09-21 | B30: 5 | C30: -0.142 | D30: -0.3 | E30: -0.518 | F30: -0.39 | G30: 0.0393
A31: 2011-09-22 | B31: 4 | C31: 0.0475 | D31: -0.075 | E31: -0.4 | F31: -0.175 | G31: 0.274125
A32: 2011-09-23 | B32: 4.1 | C32: 0.06341463415 | D32: -0.08536585366 | E32: -0.3756097561 | F32: -0.2804878049 | G32: 0.2191463415
A33: 2011-09-24 | B33: 3.9 | C33: -0.01282051282 | D33: 0.02051282051 | E33: -0.3512820513 | F33: -0.1666666667 | G33: 0.2355128205
A34: 2011-09-25 | B34: 4.43 | C34: -0.164785553 | D34: -0.1241534989 | E34: -0.460496614 | F34: -0.3047404063 | G34: 0.07223476298
A35: 2011-09-26 | B35: 4.89 | C35: -0.2229038855 | D35: -0.36400818 | E35: -0.5255623722 | F35: -0.2862985685 | G35: -0.0481595092
A36: 2011-09-27 | B36: 4.38 | C36: -0.1438356164 | D36: -0.200913242 | E36: -0.4429223744 | F36: -0.2534246575 | G36: 0.05787671233
A37: 2011-09-28 | B37: 4.29 | C37: -0.1841491841 | D37: -0.3006993007 | E37: -0.4009324009 | F37: -0.2540792541 | G37: 0.06596736597
A38: 2011-09-29 | B38: 4.19 | C38: -0.1169451074 | D38: -0.3317422434 | E38: -0.2863961814 | F38: -0.2052505967 | G38: 0.06980906921
A39: 2011-09-30 | B39: 4.36 | C39: -0.1399082569 | D39: -0.2706422018 | E39: -0.3279816514 | F39: -0.2224770642 | G39: -0.007912844037
A40: 2011-10-01 | B40: 3.85 | C40: 0.03376623377 | D40: -0.174025974 | E40: -0.2519480519 | F40: -0.1558441558 | G40: 0.1098701299
A41: 2011-10-02 | B41: 3.7 | C41: 0.04864864865 | D41: -0.1432432432 | E41: -0.3783783784 | F41: -0.05135135135 | G41: 0.1375675676
A42: 2011-10-03 | B42: 3.8 | C42: -0.1815789474 | D42: -0.2394736842 | E42: -0.2631578947 | F42: 0.1578947368 | G42: 0.09328947368
A43: 2011-10-04 | B43: 3.75 | C43: -0.06666666667 | D43: -0.4666666667 | E43: -0.2826666667 | F43: 0.656 | G43: 0.1030666667
A44: 2011-10-05 | B44: 3.5 | C44: -0.1428571429 | D44: -0.2314285714 | E44: -0.3142857143 | F44: 0.06285714286 | G44: 0.1775714286
A45: 2011-10-06 | B45: 3.7 | C45: -0.2432432432 | D45: -0.3378378378 | E45: -0.2756756757 | F45: 0.3486486486 | G45: 0.1052702703
A46: 2011-10-07 | B46: 3.75 | C46: -0.152 | D46: -0.3573333333 | E46: -0.3226666667 | F46: 0.3333333333 | G46: 0.0912
A47: 2011-10-08 | B47: 3.98 | C47: -0.2010050251 | D47: -0.3969849246 | E47: -0.3542713568 | F47: 0.256281407 | G47: 0.02663316583
A48: 2011-10-09 | B48: 3.88 | C48: -0.1829896907 | D48: -0.3402061856 | E48: -0.3298969072 | F48: 0.3273195876 | G48: 0.05219072165
A49: 2011-10-10 | B49: 3.11 | C49: -0.07073954984 | D49: -0.1864951768 | E49: -0.1768488746 | F49: 0.8102893891 | G49: 0.2951768489
A50: 2011-10-11 | B50: 3.5 | C50: -0.4285714286 | D50: -0.3171428571 | E50: -0.36 | F50: 0.4314285714 | G50: 0.1294285714
A51: 2011-10-12 | B51: 3 | C51: -0.1033333333 | D51: -0.2266666667 | E51: -0.1633333333 | F51: 0.7333333333 | G51: 0.301
A52: 2011-10-13 | B52: 2.8 | C52: -0.125 | D52: -0.1285714286 | E52: -0.1607142857 | F52: 0.9642857143 | G52: 0.3707142857
A53: 2011-10-14 | B53: 3.18 | C53: -0.2421383648 | D53: -0.1918238994 | E53: -0.2264150943 | F53: 0.7295597484 | G53: 0.1955974843
A54: 2011-10-15 | B54: 3.18 | C54: -0.2452830189 | D54: -0.05974842767 | E54: -0.4308176101 | F54: 0.6352201258 | G54: 0.1759433962
A55: 2011-10-16 | B55: 3.17 | C55: -0.1924290221 | D55: -0.07570977918 | E55: -0.3690851735 | F55: 0.7097791798 | G55: 0.1525236593
A56: 2011-10-17 | B56: 2.89 | C56: -0.124567474 | D56: -0.003460207612 | E56: -0.2214532872 | F56: 0.9723183391 | G56: 0.2384083045
A57: 2011-10-18 | B57: 2 | C57: 0.195 | D57: 0.15 | E57: 0.03 | F57: 1.85 | G57: 0.73225
A58: 2011-10-19 | B58: 2.69 | C58: -0.1375464684 | D58: 0.04089219331 | E58: -0.3085501859 | F58: 0.4907063197 | G58: 0.2600371747
A59: 2011-10-20 | B59: 2.45 | C59: -0.004081632653 | D59: 0.09795918367 | E59: -0.1714285714 | F59: 1.114285714 | G59: 0.3444897959
A60: 2011-10-21 | B60: 2.41 | C60: 0.06639004149 | D60: -0.004149377593 | E60: -0.153526971 | F60: 1.20746888 | G60: 0.3369294606
A61: 2011-10-22 | B61: 2.4 | C61: 0.2458333333 | D61: 0.1166666667 | E61: -0.1916666667 | F61: 1.179166667 | G61: 0.3154166667
A62: 2011-10-23 | B62: 2.56 | C62: 0.14453125 | D62: -0.0078125 | E62: -0.23828125 | F62: 1.02734375 | G62: 0.208984375
A63: 2011-10-24 | B63: 2.53 | C63: 0.1383399209 | D63: 0.01581027668 | E63: -0.2134387352 | F63: 0.9169960474 | G63: 0.1992094862
A64: 2011-10-25 | B64: 2.39 | C64: -0.03765690377 | D64: 0.08786610879 | E64: -0.2050209205 | F64: 1.171548117 | G64: 0.2462343096
A65: 2011-10-26 | B65: 2.32 | C65: 0.2068965517 | D65: 0.1034482759 | E65: -0.09482758621 | F65: 1.025862069 | G65: 0.2540948276
A66: 2011-10-27 | B66: 2.44 | C66: 0.1024590164 | D66: -0.08196721311 | E66: -0.1803278689 | F66: 1.004098361 | G66: 0.1655737705
A67: 2011-10-28 | B67: 2.57 | C67: -0.06614785992 | D67: -0.0233463035 | E67: -0.2412451362 | F67: 0.4474708171 | G67: 0.07918287938
A68: 2011-10-29 | B68: 2.99 | C68: -0.1036789298 | D68: -0.2140468227 | E68: -0.3311036789 | F68: 0.3210702341 | G68: -0.0872909699
A69: 2011-10-30 | B69: 2.93 | C69: -0.133105802 | D69: -0.1604095563 | E69: -0.2389078498 | F69: 0.5358361775 | G69: -0.07167235495
A70: 2011-10-31 | B70: 2.88 | C70: -0.1076388889 | D70: -0.3715277778 | E70: -0.1909722222 | F70: 0.5451388889 | G70: -0.06631944444
A71: 2011-11-01 | B71: 2.3 | C71: 0.1304347826 | D71: -0.1304347826 | E71: 0.02173913043 | F71: 1.347826087 | G71: 0.1539130435
A72: 2011-11-02 | B72: 2.8 | C72: -0.08571428571 | D72: -0.1964285714 | E72: -0.2428571429 | F72: 0.6 | G72: -0.05214285714
A73: 2011-11-03 | B73: 2.69 | C73: -0.1672862454 | D73: -0.2342007435 | E73: -0.09293680297 | F73: 0.8587360595 | G73: -0.02249070632
A74: 2011-11-04 | B74: 2.4 | C74: 0.04583333333 | D74: -0.225 | E74: -0.06666666667 | F74: 1.066666667 | G74: 0.079375
A75: 2011-11-05 | B75: 2.68 | C75: -0.1231343284 | D75: -0.2425373134 | E75: -0.1268656716 | F75: 0.6679104478 | G75: -0.04253731343
A76: 2011-11-06 | B76: 2.54 | C76: -0.03149606299 | D76: -0.1968503937 | E76: -0.09448818898 | F76: 0.811023622 | G76: 0.003346456693
A77: 2011-11-07 | B77: 2.57 | C77: -0.2957198444 | D77: -0.2451361868 | E77: -0.1050583658 | F77: 0.8249027237 | G77: 0.002723735409
A78: 2011-11-08 | B78: 2.6 | C78: -0.2307692308 | D78: -0.25 | E78: -0.1269230769 | F78: 0.7692307692 | G78: -0.01057692308
A79: 2011-11-09 | B79: 2.56 | C79: -0.12109375 | D79: -0.22265625 | E79: -0.0234375 | F79: 0.63671875 | G79: 0.00703125
A80: 2011-11-10 | B80: 2.24 | C80: -0.08035714286 | D80: -0.1517857143 | E80: 0.04017857143 | F80: 1.205357143 | G80: 0.1470982143
A81: 2011-11-11 | B81: 2.51 | C81: -0.2589641434 | D81: -0.1633466135 | E81: -0.0796812749 | F81: 0.8725099602 | G81: 0.02589641434
A82: 2011-11-12 | B82: 2.35 | C82: -0.1361702128 | D82: -0.1489361702 | E82: 0.1021276596 | F82: 1 | G82: 0.09127659574
A83: 2011-11-13 | B83: 2.46 | C83: -0.1707317073 | D83: -0.2073170732 | E83: 0.0487804878 | F83: 0.8617886179 | G83: 0.04105691057
A84: 2011-11-14 | B84: 1.81 | C84: 0.07182320442 | D84: 0.1049723757 | E84: 0.3259668508 | F84: 1.64640884 | G84: 0.3988950276
A85: 2011-11-15 | B85: 2 | C85: -0.025 | D85: 0.115 | E85: 0.25 | F85: 1.225 | G85: 0.258
A86: 2011-11-16 | B86: 2.25 | C86: -0.1155555556 | D86: 0.03555555556 | E86: 0.09777777778 | F86: 0.8177777778 | G86: 0.114
A87: 2011-11-17 | B87: 2.06 | C87: -0.07766990291 | D87: 0.140776699 | E87: 0.145631068 | F87: 0.9854368932 | G87: 0.204368932
A88: 2011-11-18 | B88: 1.86 | C88: 0.1290322581 | D88: 0.1397849462 | E88: 0.3817204301 | F88: 1.096774194 | G88: 0.3034946237
A89: 2011-11-19 | B89: 2.03 | C89: -0.01477832512 | D89: 0.2019704433 | E89: 0.3793103448 | F89: 0.8620689655 | G89: 0.1721674877
A90: 2011-11-20 | B90: 2.04 | C90: -0.04411764706 | D90: 0.09803921569 | E90: 0.4950980392 | F90: 0.8137254902 | G90: 0.1458333333
A91: 2011-11-21 | B91: 1.94 | C91: 0.03092783505 | D91: 0.206185567 | E91: 0.7010309278 | F91: 0.9020618557 | G91: 0.1956185567
A92: 2011-11-22 | B92: 1.95 | C92: 0.1435897436 | D92: 0.1794871795 | E92: 0.5128205128 | F92: 0.8923076923 | G92: 0.1676923077
A93: 2011-11-23 | B93: 1.99 | C93: 0.1708542714 | D93: 0.1557788945 | E93: 0.6331658291 | F93: 0.9949748744 | G93: 0.1266331658
A94: 2011-11-24 | B94: 1.9 | C94: 0.2368421053 | D94: 0.1947368421 | E94: 0.6210526316 | F94: 1 | G94: 0.1668421053
A95: 2011-11-25 | B95: 2.1 | C95: 0.009523809524 | D95: 0.1904761905 | E95: 0.6619047619 | F95: 0.719047619 | G95: 0.0419047619
A96: 2011-11-26 | B96: 2 | C96: 0.22 | D96: 0.165 | E96: 0.635 | F96: 1 | G96: 0.0805
A97: 2011-11-27 | B97: 1.95 | C97: 0.1487179487 | D97: 0.1846153846 | E97: 0.641025641 | F97: 1.020512821 | G97: 0.09230769231
A98: 2011-11-28 | B98: 2 | C98: 0.17 | D98: 0.295 | E98: 0.665 | F98: 0.75 | G98: 0.05
A99: 2011-11-29 | B99: 2.23 | C99: 0.03139013453 | D99: 0.1569506726 | E99: 0.5201793722 | F99: 0.7937219731 | G99: -0.06569506726
A100: 2011-11-30 | B100: 2.33 | C100: -0.01287553648 | D100: 0.03004291845 | E100: 0.3948497854 | F100: 0.6094420601 | G100: -0.1038626609
A101: 2011-12-01 | B101: 2.35 | C101: -0.03404255319 | D101: 0.06382978723 | E101: 0.4936170213 | F101: 0.5319148936 | G101: -0.114893617
A102: 2011-12-02 | B102: 2.12 | C102: 0.179245283 | D102: 0.1650943396 | E102: 1.075471698 | F102: 0.7924528302 | G102: -0.02429245283
A103: 2011-12-03 | B103: 2.44 | C103: -0.04508196721 | D103: -0.03278688525 | E103: 1.545081967 | F103: 0.6393442623 | G103: -0.1526639344
A104: 2011-12-04 | B104: 2.24 | C104: 0.03125 | D104: 0.1473214286 | E104: 0.6607142857 | F104: 0.6517857143 | G104: -0.06741071429
A105: 2011-12-05 | B105: 2.34 | C105: 0.1068376068 | D105: 0.1965811966 | E105: 1.132478632 | F105: 0.547008547 | G105: -0.1
A106: 2011-12-06 | B106: 2.3 | C106: 0.1217391304 | D106: 0.3260869565 | E106: 1.173913043 | F106: 0.5739130435 | G106: -0.08326086957
A107: 2011-12-07 | B107: 2.3 | C107: 0.04347826087 | D107: 0.4347826087 | E107: 1.173913043 | F107: 0.7826086957 | G107: -0.07804347826
A108: 2011-12-08 | B108: 2.27 | C108: 0.1013215859 | D108: 0.2995594714 | E108: 1.268722467 | F108: 0.6255506608 | G108: -0.05682819383
A109: 2011-12-09 | B109: 2.5 | C109: -0.012 | D109: 0.3 | E109: 1.252 | F109: 0.588 | G109: -0.1342
A110: 2011-12-10 | B110: 2.33 | C110: 0.01287553648 | D110: 0.321888412 | E110: 1.150214592 | F110: 0.6995708155 | G110: -0.06480686695
A111: 2011-12-11 | B111: 2.31 | C111: 0.1125541126 | D111: 0.5108225108 | E111: 1.251082251 | F111: 0.6753246753 | G111: -0.0487012987
A112: 2011-12-12 | B112: 2.59 | C112: 0.08108108108 | D112: 0.2625482625 | E112: 1.123552124 | F112: 0.5444015444 | G112: -0.1391891892
A113: 2011-12-13 | B113: 2.58 | C113: 0.1821705426 | D113: 0.2403100775 | E113: 1.131782946 | F113: 0.5387596899 | G113: -0.1244186047
A114: 2011-12-14 | B114: 2.4 | C114: 0.375 | D114: 0.3875 | E114: 1.166666667 | F114: 0.6666666667 | G114: -0.04833333333
A115: 2011-12-15 | B115: 2.5 | C115: 0.18 | D115: 0.356 | E115: 1.168 | F115: 0.6 | G115: -0.0784
A116: 2011-12-16 | B116: 2.47 | C116: 0.3157894737 | D116: 0.3157894737 | E116: 1.307692308 | F116: 0.7611336032 | G116: -0.05769230769
A117: 2011-12-17 | B117: 2.36 | C117: 0.3050847458 | D117: 0.4872881356 | E117: 1.415254237 | F117: 0.7754237288 | G117: -0.005084745763
A118: 2011-12-18 | B118: 2.57 | C118: 0.3579766537 | D118: 0.7120622568 | E118: 0.560311284 | F118: 0.4785992218 | G118: -0.07529182879
A119: 2011-12-19 | B119: 2.8 | C119: 0.1678571429 | D119: 1.217857143 | E119: 0.85 | F119: 0.4964285714 | G119: -0.1410714286
A120: 2011-12-20 | B120: 3.05 | C120: 0.04918032787 | D120: 0.2196721311 | E120: 0.7442622951 | F120: 0.3704918033 | G120: -0.1996721311
A121: 2011-12-21 | B121: 3.3 | C121: 0.009090909091 | D121: 0.5121212121 | E121: 0.5848484848 | F121: 0.1363636364 | G121: -0.2459090909
A122: 2011-12-22 | B122: 2.95 | C122: 0.1491525424 | D122: 0.6949152542 | E122: 0.7593220339 | F122: 0.3830508475 | G122: -0.1423728814
A123: 2011-12-23 | B123: 3.25 | C123: 0 | D123: 0.5384615385 | E123: 0.4923076923 | F123: 0.2153846154 | G123: -0.2090769231
A124: 2011-12-24 | B124: 3.08 | C124: 0.1396103896 | D124: 0.6720779221 | E124: 0.6850649351 | F124: 0.2857142857 | G124: -0.1517857143
A125: 2011-12-25 | B125: 3.49 | C125: 0.2607449857 | D125: 0.6131805158 | E125: 0.3467048711 | F125: -0.05444126074 | G125: -0.2349570201
A126: 2011-12-26 | B126: 3.27 | C126: 0.8990825688 | D126: 0.5321100917 | E126: 0.495412844 | F126: 0.1559633028 | G126: -0.1686544343
A127: 2011-12-27 | B127: 3.2 | C127: 0.1625 | D127: 0.625 | E127: 0.1625 | F127: 0.25 | G127: -0.13640625
A128: 2011-12-28 | B128: 3.33 | C128: 0.4984984985 | D128: 0.6516516517 | E128: 0.1861861862 | F128: 0.1351351351 | G128: -0.1542042042
A129: 2011-12-29 | B129: 3.39 | C129: 0.4749262537 | D129: 0.6224188791 | E129: 0.3274336283 | F129: 0.1179941003 | G129: -0.1560471976
A130: 2011-12-30 | B130: 3.25 | C130: 0.5384615385 | D130: 0.6 | E130: 0.3692307692 | F130: 0.1661538462 | G130: -0.1055384615
A131: 2011-12-31 | B131: 3.51 | C131: 0.4672364672 | D131: 0.5441595442 | E131: 0.5384615385 | F131: 0.09116809117 | G131: -0.1547008547
A132: 2012-01-01 | B132: 4.4 | C132: 0.2795454545 | D132: 0.2954545455 | E132: 0.01818181818 | F132: -0.1636363636 | G132: -0.3051136364
A133: 2012-01-02 | B133: 6.21 | C133: -0.193236715 | D133: -0.08212560386 | E133: -0.1948470209 | F133: -0.3816425121 | G133: -0.4784219002
A134: 2012-01-03 | B134: 3.72 | C134: 0.3978494624 | D134: 0.07795698925 | E134: 0.3333333333 | F134: 0.04569892473 | G134: -0.1115591398
A135: 2012-01-04 | B135: 4.99 | C135: 0.1022044088 | D135: 0.0380761523 | E135: -0.1042084168 | F135: -0.2224448898 | G135: -0.3127254509
A136: 2012-01-05 | B136: 5 | C136: 0.1 | D136: 0.064 | E136: -0.08 | F136: -0.25 | G136: -0.2888
A137: 2012-01-06 | B137: 5 | C137: 0.04 | D137: 0.046 | E137: -0.062 | F137: -0.236 | G137: -0.2624
A138: 2012-01-07 | B138: 5.15 | C138: 0.05242718447 | D138: 0.007766990291 | E138: -0.1067961165 | F138: -0.2601941748 | G138: -0.2588349515
A139: 2012-01-08 | B139: 5.63 | C139: 0.01243339254 | D139: -0.1385435169 | E139: -0.2557726465 | F139: -0.2895204263 | G139: -0.2968916519
A140: 2012-01-09 | B140: 5.01 | C140: 0.1377245509 | D140: 0.03592814371 | E140: -0.01397205589 | F140: -0.2814371257 | G140: -0.1903193613
A141: 2012-01-10 | B141: 5.2 | C141: -0.2288461538 | D141: -0.09615384615 | E141: -0.09615384615 | F141: -0.2788461538 | G141: -0.2016346154
A142: 2012-01-11 | B142: 5.5 | C142: -0.05818181818 | D142: -0.1109090909 | E142: -0.1454545455 | F142: -0.2909090909 | G142: -0.222
A143: 2012-01-12 | B143: 5.5 | C143: -0.03272727273 | D143: -0.3236363636 | E143: -0.1672727273 | F143: -0.3018181818 | G143: -0.2015454545
A144: 2012-01-13 | B144: 5.2 | C144: 0.005769230769 | D144: -0.2403846154 | E144: -0.07884615385 | F144: -0.2519230769 | G144: -0.1350961538
A145: 2012-01-14 | B145: 5.42 | C145: -0.04243542435 | D145: -0.1697416974 | E145: -0.1789667897 | F145: -0.315498155 | G145: -0.152398524
A146: 2012-01-15 | B146: 5.7 | C146: -0.149122807 | D146: -0.2192982456 | E146: -0.2824561404 | F146: -0.350877193 | G146: -0.1727192982
A147: 2012-01-16 | B147: 5.7 | C147: -0.08947368421 | D147: -0.05263157895 | E147: -0.2824561404 | F147: -0.3315789474 | G147: -0.1507894737
A148: 2012-01-17 | B148: 4.01 | C148: 0.1720698254 | D148: 0.1172069825 | E148: -0.02743142145 | F148: 0.04488778055 | G148: 0.2155860349
A149: 2012-01-18 | B149: 5.18 | C149: -0.05598455598 | D149: -0.03474903475 | E149: -0.2702702703 | F149: -0.2471042471 | G149: -0.0416988417
A150: 2012-01-19 | B150: 5.32 | C150: -0.3007518797 | D150: -0.06766917293 | E150: -0.3045112782 | F150: -0.2236842105 | G150: -0.04746240602
A151: 2012-01-20 | B151: 5.23 | C151: -0.2447418738 | D151: -0.1453154876 | E151: -0.2944550669 | F151: -0.2370936902 | G151: -0.01462715105
A152: 2012-01-21 | B152: 5.19 | C152: -0.1329479769 | D152: -0.1136801541 | E152: -0.289017341 | F152: -0.2543352601 | G152: 0.0005780346821
A153: 2012-01-22 | B153: 4.85 | C153: -0.0824742268 | D153: -0.03298969072 | E153: -0.181443299 | F153: -0.1587628866 | G153: 0.05670103093
A154: 2012-01-23 | B154: 5.19 | C154: 0.04046242775 | D154: -0.1136801541 | E154: -0.267822736 | F154: -0.2196531792 | G154: 0.001637764933
A155: 2012-01-24 | B155: 4.7 | C155: -0.04680851064 | D155: -0.1085106383 | E155: -0.2319148936 | F155: -0.1276595745 | G155: 0.1029787234
A156: 2012-01-25 | B156: 4.89 | C156: 0.02249488753 | D156: 0.01022494888 | E156: -0.18200409 | F156: -0.18200409 | G156: 0.05899795501
A157: 2012-01-26 | B157: 3.72 | C157: 0.3333333333 | D157: 0.2634408602 | E157: 0.05913978495 | F157: 0.123655914 | G157: 0.3748655914
A158: 2012-01-27 | B158: 3.95 | C158: 0.1316455696 | D158: 0.1898734177 | E158: -0.1139240506 | F158: -0.03797468354 | G158: 0.2796202532
A159: 2012-01-28 | B159: 4.5 | C159: 0.02222222222 | D159: 0.01777777778 | E159: -0.1111111111 | F159: -0.1155555556 | G159: 0.1106666667
A160: 2012-01-29 | B160: 4.45 | C160: 0.05393258427 | D160: 0.07640449438 | E160: -0.1573033708 | F160: -0.1235955056 | G160: 0.1168539326
A161: 2012-01-30 | B161: 5.4 | C161: -0.1481481481 | D161: -0.1759259259 | E161: -0.3333333333 | F161: -0.2925925926 | G161: -0.07777777778
A162: 2012-01-31 | B162: 4.48 | C162: -0.06473214286 | D162: -0.08705357143 | E162: -0.1517857143 | F162: -0.1517857143 | G162: 0.1002232143
A163: 2012-02-01 | B163: 5 | C163: -0.012 | D163: -0.182 | E163: -0.2 | F163: -0.24 | G163: -0.0192
A164: 2012-02-02 | B164: 4.96 | C164: -0.05241935484 | D164: -0.2137096774 | E164: -0.2540322581 | F164: -0.2177419355 | G164: -0.01370967742
A165: 2012-02-03 | B165: 4.47 | C165: 0.0514541387 | D165: -0.1543624161 | E165: -0.1901565996 | F165: -0.1185682327 | G165: 0.08378076063
A166: 2012-02-04 | B166: 4.6 | C166: -0.004347826087 | D166: -0.1956521739 | E166: -0.2130434783 | F166: -0.1391304348 | G166: 0.04119565217
A167: 2012-02-05 | B167: 4.69 | C167: 0.02132196162 | D167: -0.2132196162 | E167: -0.1257995736 | F167: -0.1343283582 | G167: 0.01044776119
A168: 2012-02-06 | B168: 4.6 | C168: -0.03260869565 | D168: -0.197826087 | E168: -0.197826087 | F168: -0.1391304348 | G168: 0.03663043478
A169: 2012-02-07 | B169: 4.19 | C169: -0.02386634845 | D169: -0.05250596659 | E169: -0.05250596659 | F169: -0.05966587112 | G169: 0.1262529833
A170: 2012-02-08 | B170: 4.94 | C170: -0.1720647773 | D170: -0.2307692308 | E170: -0.1983805668 | F170: -0.2064777328 | G170: -0.04858299595
A171: 2012-02-09 | B171: 4.7 | C171: -0.170212766 | D171: -0.2319148936 | E171: -0.1765957447 | F171: -0.1723404255 | G171: -0.005638297872
A172: 2012-02-10 | B172: 4.7 | C172: -0.1957446809 | D172: -0.1489361702 | E172: -0.1489361702 | F172: -0.1638297872 | G172: -0.01085106383
A173: 2012-02-11 | B173: 4.58 | C173: -0.192139738 | D173: -0.1397379913 | E173: -0.1331877729 | F173: -0.1659388646 | G173: 0.01211790393
A174: 2012-02-12 | B174: 4.79 | C174: -0.2296450939 | D174: -0.2693110647 | E174: -0.1649269311 | F174: -0.2066805846 | G174: -0.03643006263
A175: 2012-02-13 | B175: 4.45 | C175: -0.1707865169 | D175: -0.1011235955 | E175: -0.1011235955 | F175: -0.1235955056 | G175: 0.03438202247
A176: 2012-02-14 | B176: 4.09 | C176: -0.0293398533 | D176: -0.08312958435 | E176: 0.06356968215 | F176: -0.02200488998 | G176: 0.1156479218
A177: 2012-02-15 | B177: 4.09 | C177: -0.07090464548 | D177: -0.119804401 | E177: 0.02444987775 | F177: -0.04645476773 | G177: 0.1201711491
A178: 2012-02-16 | B178: 3.9 | C178: -0.07435897436 | D178: -0.02564102564 | E178: -0.02564102564 | F178: 0.03846153846 | G178: 0.1741025641
A179: 2012-02-17 | B179: 3.78 | C179: 0.0582010582 | D179: 0.0582010582 | E179: 0.1084656085 | F179: 0.2169312169 | G179: 0.2018518519
A180: 2012-02-18 | B180: 3.7 | C180: 0.06486486486 | D180: 0 | E180: 0.1297297297 | F180: 0.05405405405 | G180: 0.2177027027
A181: 2012-02-19 | B181: 3.69 | C181: -0.05149051491 | D181: -0.0189701897 | E181: 0.0162601626 | F181: 0.09756097561 | G181: 0.1978319783
A182: 2012-02-20 | B182: 3.69 | C182: 0.08401084011 | D182: -0.0189701897 | E182: 0.1056910569 | F182: 0.08401084011 | G182: 0.1871273713
A183: 2012-02-21 | B183: 3.97 | C183: -0.05541561713 | D183: 0.03274559194 | E183: -0.005037783375 | F183: 0.02770780856 | G183: 0.09042821159
A184: 2012-02-22 | B184: 3.8 | C184: -0.05263157895 | D184: -0.02894736842 | E184: 0.04210526316 | F184: 0.1052631579 | G184: 0.1239473684
A185: 2012-02-23 | B185: 3.61 | C185: 0.05263157895 | D185: 0.09972299169 | E185: -0.08587257618 | F185: 0.163434903 | G185: 0.1711911357
A186: 2012-02-24 | B186: 4 | C186: 0 | D186: -0.01 | E186: -0.055 | F186: 0.0275 | G186: 0.0495
A187: 2012-02-25 | B187: 3.94 | C187: -0.06091370558 | D187: -0.01776649746 | E187: 0.0152284264 | F187: 0.03553299492 | G187: 0.05596446701
A188: 2012-02-26 | B188: 3.5 | C188: 0.03428571429 | D188: 0.1428571429 | E188: 0.08 | F188: 0.1628571429 | G188: 0.173
A189: 2012-02-27 | B189: 4 | C189: -0.095 | D189: -0.0075 | E189: -0.0525 | F189: 0.025 | G189: 0.024
A190: 2012-02-28 | B190: 3.75 | C190: 0.09333333333 | D190: 0.06666666667 | E190: 0.01066666667 | F190: 0.1146666667 | G190: 0.0764
A191: 2012-02-29 | B191: 3.6 | C191: 0.025 | D191: 0.1111111111 | E191: 0.06388888889 | F191: 0.1527777778 | G191: 0.1059722222
A192: 2012-03-01 | B192: 3.8 | C192: 0.04473684211 | D192: 0.1447368421 | E192: -0.03157894737 | F192: 0.15 | G192: 2.7965
A193: 2012-03-02 | B193: 4 | C193: -0.01 | D193: 0.0475 | E193: -0.04 | F193: 0.0875 | G193: -0.058125
A194: 2012-03-03 | B194: 3.7 | C194: 0.04594594595 | D194: 0.02702702703 | E194: 0.05135135135 | F194: 0.1891891892 | G194: 0.003513513514
A195: 2012-03-04 | B195: 3.62 | C195: 0.1049723757 | D195: 0.1574585635 | E195: 0.07182320442 | F195: 0.2375690608 | G195: 0.01422651934
A196: 2012-03-05 | B196: 3.62 | C196: 0.09668508287 | D196: 0.1546961326 | E196: 0.03591160221 | F196: 0.1657458564 | G196: 0.00773480663
A197: 2012-03-06 | B197: 4.1 | C197: -0.0243902439 | D197: -0.08536585366 | E197: -0.06829268293 | F197: 0.04634146341 | G197: -0.1101219512
A198: 2012-03-07 | B198: 3.69 | C198: 0.08401084011 | D198: 0.1056910569 | E198: 0.0325203252 | F198: 0.1761517615 | G198: -0.01409214092
A199: 2012-03-08 | B199: 3.97 | C199: 0.09571788413 | D199: -0.005037783375 | E199: 0.007556675063 | F199: 0.1335012594 | G199: -0.08123425693
A200: 2012-03-09 | B200: 3.96 | C200: 0.05808080808 | D200: 0 | E200: -0.09090909091 | F200: 0.148989899 | G200: -0.07563131313
... 4042 more rows

Sheet Indikatoren (hidden)
A2: Datum | B2: Kurs | C2: SMA 20 | D2: SMA 50 | E2: SMA 100 | F2: SMA 200 | G2: Abst SMA 20 | H2: Abst SMA 50 | I2: Abst SMA 100 | J2: Abst SMA 200
A3: 2011-08-25 | B3: 7.65 | C3: 0.3825 | D3: 0.153 | E3: 0.0765 | F3: 0.03825 | G3: 0 | H3: 0 | I3: 0 | J3: 0
A4: 2011-08-26 | B4: 7.5 | C4: 0.7575 | D4: 0.303 | E4: 0.1515 | F4: 0.07575 | G4: 0 | H4: 0 | I4: 0 | J4: 0
A5: 2011-08-27 | B5: 7.5 | C5: 1.1325 | D5: 0.453 | E5: 0.2265 | F5: 0.11325 | G5: 0 | H5: 0 | I5: 0 | J5: 0
A6: 2011-08-28 | B6: 6 | C6: 1.4325 | D6: 0.573 | E6: 0.2865 | F6: 0.14325 | G6: 0 | H6: 0 | I6: 0 | J6: 0
A7: 2011-08-29 | B7: 6.49 | C7: 1.757 | D7: 0.7028 | E7: 0.3514 | F7: 0.1757 | G7: 0 | H7: 0 | I7: 0 | J7: 0
A8: 2011-08-30 | B8: 6.5 | C8: 2.082 | D8: 0.8328 | E8: 0.4164 | F8: 0.2082 | G8: 0 | H8: 0 | I8: 0 | J8: 0
A9: 2011-08-31 | B9: 6.48 | C9: 2.406 | D9: 0.9624 | E9: 0.4812 | F9: 0.2406 | G9: 0 | H9: 0 | I9: 0 | J9: 0
A10: 2011-09-01 | B10: 7.8 | C10: 2.796 | D10: 1.1184 | E10: 0.5592 | F10: 0.2796 | G10: 0 | H10: 0 | I10: 0 | J10: 0
A11: 2011-09-02 | B11: 6 | C11: 3.096 | D11: 1.2384 | E11: 0.6192 | F11: 0.3096 | G11: 0 | H11: 0 | I11: 0 | J11: 0
A12: 2011-09-03 | B12: 6.06 | C12: 3.399 | D12: 1.3596 | E12: 0.6798 | F12: 0.3399 | G12: 0 | H12: 0 | I12: 0 | J12: 0
A13: 2011-09-04 | B13: 7.5 | C13: 3.774 | D13: 1.5096 | E13: 0.7548 | F13: 0.3774 | G13: 0 | H13: 0 | I13: 0 | J13: 0
A14: 2011-09-05 | B14: 5.8 | C14: 4.064 | D14: 1.6256 | E14: 0.8128 | F14: 0.4064 | G14: 0 | H14: 0 | I14: 0 | J14: 0
A15: 2011-09-06 | B15: 6.8 | C15: 4.404 | D15: 1.7616 | E15: 0.8808 | F15: 0.4404 | G15: 0 | H15: 0 | I15: 0 | J15: 0
A16: 2011-09-07 | B16: 4.8 | C16: 4.644 | D16: 1.8576 | E16: 0.9288 | F16: 0.4644 | G16: 0 | H16: 0 | I16: 0 | J16: 0
A17: 2011-09-08 | B17: 5.5 | C17: 4.919 | D17: 1.9676 | E17: 0.9838 | F17: 0.4919 | G17: 0 | H17: 0 | I17: 0 | J17: 0
A18: 2011-09-09 | B18: 6 | C18: 5.219 | D18: 2.0876 | E18: 1.0438 | F18: 0.5219 | G18: 0 | H18: 0 | I18: 0 | J18: 0
A19: 2011-09-10 | B19: 7.5 | C19: 5.594 | D19: 2.2376 | E19: 1.1188 | F19: 0.5594 | G19: 0 | H19: 0 | I19: 0 | J19: 0
A20: 2011-09-11 | B20: 4.9 | C20: 5.839 | D20: 2.3356 | E20: 1.1678 | F20: 0.5839 | G20: 0 | H20: 0 | I20: 0 | J20: 0
A21: 2011-09-12 | B21: 4.98 | C21: 6.088 | D21: 2.4352 | E21: 1.2176 | F21: 0.6088 | G21: 0 | H21: 0 | I21: 0 | J21: 0
A22: 2011-09-13 | B22: 4.89 | C22: 6.3325 | D22: 2.533 | E22: 1.2665 | F22: 0.63325 | G22: 0.2949897751 | H22: 0 | I22: 0 | J22: 0
A23: 2011-09-14 | B23: 4.11 | C23: 6.1555 | D23: 2.6152 | E23: 1.3076 | F23: 0.6538 | G23: 0.4976885645 | H23: 0 | I23: 0 | J23: 0
A24: 2011-09-15 | B24: 3.8 | C24: 5.9705 | D24: 2.6912 | E24: 1.3456 | F24: 0.6728 | G24: 0.5711842105 | H24: 0 | I24: 0 | J24: 0
A25: 2011-09-16 | B25: 4.34 | C25: 5.8125 | D25: 2.778 | E25: 1.389 | F25: 0.6945 | G25: 0.3392857143 | H25: 0 | I25: 0 | J25: 0
A26: 2011-09-17 | B26: 3.7 | C26: 5.6975 | D26: 2.852 | E26: 1.426 | F26: 0.713 | G26: 0.5398648649 | H26: 0 | I26: 0 | J26: 0
A27: 2011-09-18 | B27: 4.1 | C27: 5.578 | D27: 2.934 | E27: 1.467 | F27: 0.7335 | G27: 0.3604878049 | H27: 0 | I27: 0 | J27: 0
A28: 2011-09-19 | B28: 3.95 | C28: 5.4505 | D28: 3.013 | E28: 1.5065 | F28: 0.75325 | G28: 0.3798734177 | H28: 0 | I28: 0 | J28: 0
A29: 2011-09-20 | B29: 4.2 | C29: 5.3365 | D29: 3.097 | E29: 1.5485 | F29: 0.77425 | G29: 0.2705952381 | H29: 0 | I29: 0 | J29: 0
A30: 2011-09-21 | B30: 5 | C30: 5.1965 | D30: 3.197 | E30: 1.5985 | F30: 0.79925 | G30: 0.0393 | H30: 0 | I30: 0 | J30: 0
A31: 2011-09-22 | B31: 4 | C31: 5.0965 | D31: 3.277 | E31: 1.6385 | F31: 0.81925 | G31: 0.274125 | H31: 0 | I31: 0 | J31: 0
A32: 2011-09-23 | B32: 4.1 | C32: 4.9985 | D32: 3.359 | E32: 1.6795 | F32: 0.83975 | G32: 0.2191463415 | H32: 0 | I32: 0 | J32: 0
A33: 2011-09-24 | B33: 3.9 | C33: 4.8185 | D33: 3.437 | E33: 1.7185 | F33: 0.85925 | G33: 0.2355128205 | H33: 0 | I33: 0 | J33: 0
A34: 2011-09-25 | B34: 4.43 | C34: 4.75 | D34: 3.5256 | E34: 1.7628 | F34: 0.8814 | G34: 0.07223476298 | H34: 0 | I34: 0 | J34: 0
A35: 2011-09-26 | B35: 4.89 | C35: 4.6545 | D35: 3.6234 | E35: 1.8117 | F35: 0.90585 | G35: -0.0481595092 | H35: 0 | I35: 0 | J35: 0
A36: 2011-09-27 | B36: 4.38 | C36: 4.6335 | D36: 3.711 | E36: 1.8555 | F36: 0.92775 | G36: 0.05787671233 | H36: 0 | I36: 0 | J36: 0
A37: 2011-09-28 | B37: 4.29 | C37: 4.573 | D37: 3.7968 | E37: 1.8984 | F37: 0.9492 | G37: 0.06596736597 | H37: 0 | I37: 0 | J37: 0
A38: 2011-09-29 | B38: 4.19 | C38: 4.4825 | D38: 3.8806 | E38: 1.9403 | F38: 0.97015 | G38: 0.06980906921 | H38: 0 | I38: 0 | J38: 0
A39: 2011-09-30 | B39: 4.36 | C39: 4.3255 | D39: 3.9678 | E39: 1.9839 | F39: 0.99195 | G39: -0.007912844037 | H39: 0 | I39: 0 | J39: 0
A40: 2011-10-01 | B40: 3.85 | C40: 4.273 | D40: 4.0448 | E40: 2.0224 | F40: 1.0112 | G40: 0.1098701299 | H40: 0 | I40: 0 | J40: 0
A41: 2011-10-02 | B41: 3.7 | C41: 4.209 | D41: 4.1188 | E41: 2.0594 | F41: 1.0297 | G41: 0.1375675676 | H41: 0 | I41: 0 | J41: 0
A42: 2011-10-03 | B42: 3.8 | C42: 4.1545 | D42: 4.1948 | E42: 2.0974 | F42: 1.0487 | G42: 0.09328947368 | H42: 0 | I42: 0 | J42: 0
A43: 2011-10-04 | B43: 3.75 | C43: 4.1365 | D43: 4.2698 | E43: 2.1349 | F43: 1.06745 | G43: 0.1030666667 | H43: 0 | I43: 0 | J43: 0
A44: 2011-10-05 | B44: 3.5 | C44: 4.1215 | D44: 4.3398 | E44: 2.1699 | F44: 1.08495 | G44: 0.1775714286 | H44: 0 | I44: 0 | J44: 0
A45: 2011-10-06 | B45: 3.7 | C45: 4.0895 | D45: 4.4138 | E45: 2.2069 | F45: 1.10345 | G45: 0.1052702703 | H45: 0 | I45: 0 | J45: 0
A46: 2011-10-07 | B46: 3.75 | C46: 4.092 | D46: 4.4888 | E46: 2.2444 | F46: 1.1222 | G46: 0.0912 | H46: 0 | I46: 0 | J46: 0
A47: 2011-10-08 | B47: 3.98 | C47: 4.086 | D47: 4.5684 | E47: 2.2842 | F47: 1.1421 | G47: 0.02663316583 | H47: 0 | I47: 0 | J47: 0
A48: 2011-10-09 | B48: 3.88 | C48: 4.0825 | D48: 4.646 | E48: 2.323 | F48: 1.1615 | G48: 0.05219072165 | H48: 0 | I48: 0 | J48: 0
A49: 2011-10-10 | B49: 3.11 | C49: 4.028 | D49: 4.7082 | E49: 2.3541 | F49: 1.17705 | G49: 0.2951768489 | H49: 0 | I49: 0 | J49: 0
A50: 2011-10-11 | B50: 3.5 | C50: 3.953 | D50: 4.7782 | E50: 2.3891 | F50: 1.19455 | G50: 0.1294285714 | H50: 0 | I50: 0 | J50: 0
A51: 2011-10-12 | B51: 3 | C51: 3.903 | D51: 4.8382 | E51: 2.4191 | F51: 1.20955 | G51: 0.301 | H51: 0 | I51: 0 | J51: 0
A52: 2011-10-13 | B52: 2.8 | C52: 3.838 | D52: 4.8942 | E52: 2.4471 | F52: 1.22355 | G52: 0.3707142857 | H52: 0.7479285714 | I52: 0 | J52: 0
A53: 2011-10-14 | B53: 3.18 | C53: 3.802 | D53: 4.8048 | E53: 2.4789 | F53: 1.23945 | G53: 0.1955974843 | H53: 0.5109433962 | I53: 0 | J53: 0
A54: 2011-10-15 | B54: 3.18 | C54: 3.7395 | D54: 4.7184 | E54: 2.5107 | F54: 1.25535 | G54: 0.1759433962 | H54: 0.4837735849 | I54: 0 | J54: 0
A55: 2011-10-16 | B55: 3.17 | C55: 3.6535 | D55: 4.6318 | E55: 2.5424 | F55: 1.2712 | G55: 0.1525236593 | H55: 0.4611356467 | I55: 0 | J55: 0
A56: 2011-10-17 | B56: 2.89 | C56: 3.579 | D56: 4.5696 | E56: 2.5713 | F56: 1.28565 | G56: 0.2384083045 | H56: 0.5811764706 | I56: 0 | J56: 0
A57: 2011-10-18 | B57: 2 | C57: 3.4645 | D57: 4.4798 | E57: 2.5913 | F57: 1.29565 | G57: 0.73225 | H57: 1.2399 | I57: 0 | J57: 0
A58: 2011-10-19 | B58: 2.69 | C58: 3.3895 | D58: 4.4036 | E58: 2.6182 | F58: 1.3091 | G58: 0.2600371747 | H58: 0.6370260223 | I58: 0 | J58: 0
A59: 2011-10-20 | B59: 2.45 | C59: 3.294 | D59: 4.323 | E59: 2.6427 | F59: 1.32135 | G59: 0.3444897959 | H59: 0.7644897959 | I59: 0 | J59: 0
A60: 2011-10-21 | B60: 2.41 | C60: 3.222 | D60: 4.2152 | E60: 2.6668 | F60: 1.3334 | G60: 0.3369294606 | H60: 0.7490456432 | I60: 0 | J60: 0
A61: 2011-10-22 | B61: 2.4 | C61: 3.157 | D61: 4.1432 | E61: 2.6908 | F61: 1.3454 | G61: 0.3154166667 | H61: 0.7263333333 | I61: 0 | J61: 0
A62: 2011-10-23 | B62: 2.56 | C62: 3.095 | D62: 4.0732 | E62: 2.7164 | F62: 1.3582 | G62: 0.208984375 | H62: 0.59109375 | I62: 0 | J62: 0
A63: 2011-10-24 | B63: 2.53 | C63: 3.034 | D63: 3.9738 | E63: 2.7417 | F63: 1.37085 | G63: 0.1992094862 | H63: 0.5706719368 | I63: 0 | J63: 0
A64: 2011-10-25 | B64: 2.39 | C64: 2.9785 | D64: 3.9056 | E64: 2.7656 | F64: 1.3828 | G64: 0.2462343096 | H64: 0.6341422594 | I64: 0 | J64: 0
A65: 2011-10-26 | B65: 2.32 | C65: 2.9095 | D65: 3.816 | E65: 2.7888 | F65: 1.3944 | G65: 0.2540948276 | H65: 0.6448275862 | I65: 0 | J65: 0
A66: 2011-10-27 | B66: 2.44 | C66: 2.844 | D66: 3.7688 | E66: 2.8132 | F66: 1.4066 | G66: 0.1655737705 | H66: 0.5445901639 | I66: 0 | J66: 0
A67: 2011-10-28 | B67: 2.57 | C67: 2.7735 | D67: 3.7102 | E67: 2.8389 | F67: 1.41945 | G67: 0.07918287938 | H67: 0.4436575875 | I67: 0 | J67: 0
A68: 2011-10-29 | B68: 2.99 | C68: 2.729 | D68: 3.65 | E68: 2.8688 | F68: 1.4344 | G68: -0.0872909699 | H68: 0.220735786 | I68: 0 | J68: 0
A69: 2011-10-30 | B69: 2.93 | C69: 2.72 | D69: 3.5586 | E69: 2.8981 | F69: 1.44905 | G69: -0.07167235495 | H69: 0.2145392491 | I69: 0 | J69: 0
A70: 2011-10-31 | B70: 2.88 | C70: 2.689 | D70: 3.5182 | E70: 2.9269 | F70: 1.46345 | G70: -0.06631944444 | H70: 0.2215972222 | I70: 0 | J70: 0
A71: 2011-11-01 | B71: 2.3 | C71: 2.654 | D71: 3.4646 | E71: 2.9499 | F71: 1.47495 | G71: 0.1539130435 | H71: 0.5063478261 | I71: 0 | J71: 0
A72: 2011-11-02 | B72: 2.8 | C72: 2.654 | D72: 3.4228 | E72: 2.9779 | F72: 1.48895 | G72: -0.05214285714 | H72: 0.2224285714 | I72: 0 | J72: 0
A73: 2011-11-03 | B73: 2.69 | C73: 2.6295 | D73: 3.3944 | E73: 3.0048 | F73: 1.5024 | G73: -0.02249070632 | H73: 0.2618587361 | I73: 0 | J73: 0
A74: 2011-11-04 | B74: 2.4 | C74: 2.5905 | D74: 3.3664 | E74: 3.0288 | F74: 1.5144 | G74: 0.079375 | H74: 0.4026666667 | I74: 0 | J74: 0
A75: 2011-11-05 | B75: 2.68 | C75: 2.566 | D75: 3.3332 | E75: 3.0556 | F75: 1.5278 | G75: -0.04253731343 | H75: 0.2437313433 | I75: 0 | J75: 0
A76: 2011-11-06 | B76: 2.54 | C76: 2.5485 | D76: 3.31 | E76: 3.081 | F76: 1.5405 | G76: 0.003346456693 | H76: 0.3031496063 | I76: 0 | J76: 0
A77: 2011-11-07 | B77: 2.57 | C77: 2.577 | D77: 3.2794 | E77: 3.1067 | F77: 1.55335 | G77: 0.002723735409 | H77: 0.2760311284 | I77: 0 | J77: 0
A78: 2011-11-08 | B78: 2.6 | C78: 2.5725 | D78: 3.2524 | E78: 3.1327 | F78: 1.56635 | G78: -0.01057692308 | H78: 0.2509230769 | I78: 0 | J78: 0
A79: 2011-11-09 | B79: 2.56 | C79: 2.578 | D79: 3.2196 | E79: 3.1583 | F79: 1.57915 | G79: 0.00703125 | H79: 0.25765625 | I79: 0 | J79: 0
A80: 2011-11-10 | B80: 2.24 | C80: 2.5695 | D80: 3.1644 | E80: 3.1807 | F80: 1.59035 | G80: 0.1470982143 | H80: 0.4126785714 | I80: 0 | J80: 0
A81: 2011-11-11 | B81: 2.51 | C81: 2.575 | D81: 3.1346 | E81: 3.2058 | F81: 1.6029 | G81: 0.02589641434 | H81: 0.2488446215 | I81: 0 | J81: 0
A82: 2011-11-12 | B82: 2.35 | C82: 2.5645 | D82: 3.0996 | E82: 3.2293 | F82: 1.61465 | G82: 0.09127659574 | H82: 0.3189787234 | I82: 0 | J82: 0
A83: 2011-11-13 | B83: 2.46 | C83: 2.561 | D83: 3.0708 | E83: 3.2539 | F83: 1.62695 | G83: 0.04105691057 | H83: 0.2482926829 | I83: 0 | J83: 0
A84: 2011-11-14 | B84: 1.81 | C84: 2.532 | D84: 3.0184 | E84: 3.272 | F84: 1.636 | G84: 0.3988950276 | H84: 0.6676243094 | I84: 0 | J84: 0
A85: 2011-11-15 | B85: 2 | C85: 2.516 | D85: 2.9606 | E85: 3.292 | F85: 1.646 | G85: 0.258 | H85: 0.4803 | I85: 0 | J85: 0
A86: 2011-11-16 | B86: 2.25 | C86: 2.5065 | D86: 2.918 | E86: 3.3145 | F86: 1.65725 | G86: 0.114 | H86: 0.2968888889 | I86: 0 | J86: 0
A87: 2011-11-17 | B87: 2.06 | C87: 2.481 | D87: 2.8734 | E87: 3.3351 | F87: 1.66755 | G87: 0.204368932 | H87: 0.3948543689 | I87: 0 | J87: 0
A88: 2011-11-18 | B88: 1.86 | C88: 2.4245 | D88: 2.8268 | E88: 3.3537 | F88: 1.67685 | G88: 0.3034946237 | H88: 0.5197849462 | I88: 0 | J88: 0
A89: 2011-11-19 | B89: 2.03 | C89: 2.3795 | D89: 2.7802 | E89: 3.374 | F89: 1.687 | G89: 0.1721674877 | H89: 0.3695566502 | I89: 0 | J89: 0
A90: 2011-11-20 | B90: 2.04 | C90: 2.3375 | D90: 2.744 | E90: 3.3944 | F90: 1.6972 | G90: 0.1458333333 | H90: 0.3450980392 | I90: 0 | J90: 0
A91: 2011-11-21 | B91: 1.94 | C91: 2.3195 | D91: 2.7088 | E91: 3.4138 | F91: 1.7069 | G91: 0.1956185567 | H91: 0.3962886598 | I91: 0 | J91: 0
A92: 2011-11-22 | B92: 1.95 | C92: 2.277 | D92: 2.6718 | E92: 3.4333 | F92: 1.71665 | G92: 0.1676923077 | H92: 0.3701538462 | I92: 0 | J92: 0
A93: 2011-11-23 | B93: 1.99 | C93: 2.242 | D93: 2.6366 | E93: 3.4532 | F93: 1.7266 | G93: 0.1266331658 | H93: 0.3249246231 | I93: 0 | J93: 0
A94: 2011-11-24 | B94: 1.9 | C94: 2.217 | D94: 2.6046 | E94: 3.4722 | F94: 1.7361 | G94: 0.1668421053 | H94: 0.3708421053 | I94: 0 | J94: 0
A95: 2011-11-25 | B95: 2.1 | C95: 2.188 | D95: 2.5726 | E95: 3.4932 | F95: 1.7466 | G95: 0.0419047619 | H95: 0.225047619 | I95: 0 | J95: 0
A96: 2011-11-26 | B96: 2 | C96: 2.161 | D96: 2.5376 | E96: 3.5132 | F96: 1.7566 | G96: 0.0805 | H96: 0.2688 | I96: 0 | J96: 0
A97: 2011-11-27 | B97: 1.95 | C97: 2.13 | D97: 2.497 | E97: 3.5327 | F97: 1.76635 | G97: 0.09230769231 | H97: 0.2805128205 | I97: 0 | J97: 0
A98: 2011-11-28 | B98: 2 | C98: 2.1 | D98: 2.4594 | E98: 3.5527 | F98: 1.77635 | G98: 0.05 | H98: 0.2297 | I98: 0 | J98: 0
A99: 2011-11-29 | B99: 2.23 | C99: 2.0835 | D99: 2.4418 | E99: 3.575 | F99: 1.7875 | G99: -0.06569506726 | H99: 0.09497757848 | I99: 0 | J99: 0
A100: 2011-11-30 | B100: 2.33 | C100: 2.088 | D100: 2.4184 | E100: 3.5983 | F100: 1.79915 | G100: -0.1038626609 | H100: 0.03793991416 | I100: 0 | J100: 0
A101: 2011-12-01 | B101: 2.35 | C101: 2.08 | D101: 2.4054 | E101: 3.6218 | F101: 1.8109 | G101: -0.114893617 | H101: 0.02357446809 | I101: 0 | J101: 0
A102: 2011-12-02 | B102: 2.12 | C102: 2.0685 | D102: 2.3918 | E102: 3.643 | F102: 1.8215 | G102: -0.02429245283 | H102: 0.1282075472 | I102: 0.7183962264 | J102: 0
A103: 2011-12-03 | B103: 2.44 | C103: 2.0675 | D103: 2.377 | E103: 3.5909 | F103: 1.8337 | G103: -0.1526639344 | H103: -0.02581967213 | I103: 0.4716803279 | J103: 0
A104: 2011-12-04 | B104: 2.24 | C104: 2.089 | D104: 2.3582 | E104: 3.5383 | F104: 1.8449 | G104: -0.06741071429 | H104: 0.05276785714 | I104: 0.5795982143 | J104: 0
A105: 2011-12-05 | B105: 2.34 | C105: 2.106 | D105: 2.3416 | E105: 3.4867 | F105: 1.8566 | G105: -0.1 | H105: 0.0006837606838 | I105: 0.490042735 | J105: 0
A106: 2011-12-06 | B106: 2.3 | C106: 2.1085 | D106: 2.3298 | E106: 3.4497 | F106: 1.8681 | G106: -0.08326086957 | H106: 0.01295652174 | I106: 0.4998695652 | J106: 0
A107: 2011-12-07 | B107: 2.3 | C107: 2.1205 | D107: 2.3358 | E107: 3.4078 | F107: 1.8796 | G107: -0.07804347826 | H107: 0.01556521739 | I107: 0.4816521739 | J107: 0
A108: 2011-12-08 | B108: 2.27 | C108: 2.141 | D108: 2.3274 | E108: 3.3655 | F108: 1.89095 | G108: -0.05682819383 | H108: 0.02528634361 | I108: 0.4825991189 | J108: 0
A109: 2011-12-09 | B109: 2.5 | C109: 2.1645 | D109: 2.3284 | E109: 3.3257 | F109: 1.90345 | G109: -0.1342 | H109: -0.06864 | I109: 0.33028 | J109: 0
A110: 2011-12-10 | B110: 2.33 | C110: 2.179 | D110: 2.3268 | E110: 3.271 | F110: 1.9151 | G110: -0.06480686695 | H110: -0.001373390558 | I110: 0.4038626609 | J110: 0
A111: 2011-12-11 | B111: 2.31 | C111: 2.1975 | D111: 2.325 | E111: 3.2341 | F111: 1.92665 | G111: -0.0487012987 | H111: 0.006493506494 | I111: 0.40004329 | J111: 0
A112: 2011-12-12 | B112: 2.59 | C112: 2.2295 | D112: 2.3256 | E112: 3.1994 | F112: 1.9396 | G112: -0.1391891892 | H112: -0.1020849421 | I112: 0.2352895753 | J112: 0
A113: 2011-12-13 | B113: 2.58 | C113: 2.259 | D113: 2.3266 | E113: 3.1502 | F113: 1.9525 | G113: -0.1244186047 | H113: -0.09821705426 | I113: 0.2210077519 | J113: 0
A114: 2011-12-14 | B114: 2.4 | C114: 2.284 | D114: 2.3268 | E114: 3.1162 | F114: 1.9645 | G114: -0.04833333333 | H114: -0.0305 | I114: 0.2984166667 | J114: 0
A115: 2011-12-15 | B115: 2.5 | C115: 2.304 | D115: 2.3304 | E115: 3.0732 | F115: 1.977 | G115: -0.0784 | H115: -0.06784 | I115: 0.22928 | J115: 0
A116: 2011-12-16 | B116: 2.47 | C116: 2.3275 | D116: 2.331 | E116: 3.0499 | F116: 1.98935 | G116: -0.05769230769 | H116: -0.05627530364 | I116: 0.2347773279 | J116: 0
A117: 2011-12-17 | B117: 2.36 | C117: 2.348 | D117: 2.3268 | E117: 3.0185 | F117: 2.00115 | G117: -0.005084745763 | H117: -0.01406779661 | I117: 0.2790254237 | J117: 0
A118: 2011-12-18 | B118: 2.57 | C118: 2.3765 | D118: 2.3184 | E118: 2.9842 | F118: 2.014 | G118: -0.07529182879 | H118: -0.09789883268 | I118: 0.1611673152 | J118: 0
A119: 2011-12-19 | B119: 2.8 | C119: 2.405 | D119: 2.3158 | E119: 2.9372 | F119: 2.028 | G119: -0.1410714286 | H119: -0.1729285714 | I119: 0.049 | J119: 0
A120: 2011-12-20 | B120: 3.05 | C120: 2.441 | D120: 2.3192 | E120: 2.9187 | F120: 2.04325 | G120: -0.1996721311 | H120: -0.2396065574 | I120: -0.04304918033 | J120: 0
A121: 2011-12-21 | B121: 3.3 | C121: 2.4885 | D121: 2.3392 | E121: 2.9019 | F121: 2.05975 | G121: -0.2459090909 | H121: -0.2911515152 | I121: -0.1206363636 | J121: 0
A122: 2011-12-22 | B122: 2.95 | C122: 2.53 | D122: 2.3422 | E122: 2.8825 | F122: 2.0745 | G122: -0.1423728814 | H122: -0.2060338983 | I122: -0.02288135593 | J122: 0
A123: 2011-12-23 | B123: 3.25 | C123: 2.5705 | D123: 2.3534 | E123: 2.8739 | F123: 2.09075 | G123: -0.2090769231 | H123: -0.2758769231 | I123: -0.1157230769 | J123: 0
A124: 2011-12-24 | B124: 3.08 | C124: 2.6125 | D124: 2.367 | E124: 2.8667 | F124: 2.10615 | G124: -0.1517857143 | H124: -0.2314935065 | I124: -0.06925324675 | J124: 0
A125: 2011-12-25 | B125: 3.49 | C125: 2.67 | D125: 2.3832 | E125: 2.8582 | F125: 2.1236 | G125: -0.2349570201 | H125: -0.3171346705 | I125: -0.1810315186 | J125: 0
A126: 2011-12-26 | B126: 3.27 | C126: 2.7185 | D126: 2.3978 | E126: 2.8539 | F126: 2.13995 | G126: -0.1686544343 | H126: -0.2667278287 | I126: -0.1272477064 | J126: 0
A127: 2011-12-27 | B127: 3.2 | C127: 2.7635 | D127: 2.4104 | E127: 2.8449 | F127: 2.15595 | G127: -0.13640625 | H127: -0.24675 | I127: -0.11096875 | J127: 0
A128: 2011-12-28 | B128: 3.33 | C128: 2.8165 | D128: 2.425 | E128: 2.8387 | F128: 2.1726 | G128: -0.1542042042 | H128: -0.2717717718 | I128: -0.1475375375 | J128: 0
A129: 2011-12-29 | B129: 3.39 | C129: 2.861 | D129: 2.4416 | E129: 2.8306 | F129: 2.18955 | G129: -0.1560471976 | H129: -0.2797640118 | I129: -0.1650147493 | J129: 0
A130: 2011-12-30 | B130: 3.25 | C130: 2.907 | D130: 2.4618 | E130: 2.8131 | F130: 2.2058 | G130: -0.1055384615 | H130: -0.2425230769 | I130: -0.1344307692 | J130: 0
A131: 2011-12-31 | B131: 3.51 | C131: 2.967 | D131: 2.4818 | E131: 2.8082 | F131: 2.22335 | G131: -0.1547008547 | H131: -0.2929344729 | I131: -0.1999430199 | J131: 0
A132: 2012-01-01 | B132: 4.4 | C132: 3.0575 | D132: 2.5228 | E132: 2.8112 | F132: 2.24535 | G132: -0.3051136364 | H132: -0.4266363636 | I132: -0.3610909091 | J132: 0
A133: 2012-01-02 | B133: 6.21 | C133: 3.239 | D133: 2.5978 | E133: 2.8343 | F133: 2.2764 | G133: -0.4784219002 | H133: -0.5816747182 | I133: -0.5435909823 | J133: 0
A134: 2012-01-03 | B134: 3.72 | C134: 3.305 | D134: 2.636 | E134: 2.8272 | F134: 2.295 | G134: -0.1115591398 | H134: -0.2913978495 | I134: -0.24 | J134: 0
A135: 2012-01-04 | B135: 4.99 | C135: 3.4295 | D135: 2.6958 | E135: 2.8282 | F135: 2.31995 | G135: -0.3127254509 | H135: -0.459759519 | I135: -0.4332264529 | J135: 0
A136: 2012-01-05 | B136: 5 | C136: 3.556 | D136: 2.7508 | E136: 2.8344 | F136: 2.34495 | G136: -0.2888 | H136: -0.44984 | I136: -0.43312 | J136: 0
A137: 2012-01-06 | B137: 5 | C137: 3.688 | D137: 2.8096 | E137: 2.8415 | F137: 2.36995 | G137: -0.2624 | H137: -0.43808 | I137: -0.4317 | J137: 0
A138: 2012-01-07 | B138: 5.15 | C138: 3.817 | D138: 2.8754 | E138: 2.8511 | F138: 2.3957 | G138: -0.2588349515 | H138: -0.4416699029 | I138: -0.4463883495 | J138: 0
A139: 2012-01-08 | B139: 5.63 | C139: 3.9585 | D139: 2.9474 | E139: 2.8638 | F139: 2.42385 | G139: -0.2968916519 | H139: -0.4764831261 | I139: -0.4913321492 | J139: 0
A140: 2012-01-09 | B140: 5.01 | C140: 4.0565 | D140: 3.0068 | E140: 2.8754 | F140: 2.4489 | G140: -0.1903193613 | H140: -0.3998403194 | I140: -0.4260678643 | J140: 0
A141: 2012-01-10 | B141: 5.2 | C141: 4.1515 | D141: 3.072 | E141: 2.8904 | F141: 2.4749 | G141: -0.2016346154 | H141: -0.4092307692 | I141: -0.4441538462 | J141: 0
A142: 2012-01-11 | B142: 5.5 | C142: 4.279 | D142: 3.143 | E142: 2.9074 | F142: 2.5024 | G142: -0.222 | H142: -0.4285454545 | I142: -0.4713818182 | J142: 0
A143: 2012-01-12 | B143: 5.5 | C143: 4.3915 | D143: 3.2132 | E143: 2.9249 | F143: 2.5299 | G143: -0.2015454545 | H143: -0.4157818182 | I143: -0.4682 | J143: 0
A144: 2012-01-13 | B144: 5.2 | C144: 4.4975 | D144: 3.2792 | E144: 2.9419 | F144: 2.5559 | G144: -0.1350961538 | H144: -0.3693846154 | I144: -0.43425 | J144: 0
A145: 2012-01-14 | B145: 5.42 | C145: 4.594 | D145: 3.3456 | E145: 2.9591 | F145: 2.583 | G145: -0.152398524 | H145: -0.3827306273 | I145: -0.4540405904 | J145: 0
A146: 2012-01-15 | B146: 5.7 | C146: 4.7155 | D146: 3.4196 | E146: 2.9786 | F146: 2.6115 | G146: -0.1727192982 | H146: -0.4000701754 | I146: -0.4774385965 | J146: 0
A147: 2012-01-16 | B147: 5.7 | C147: 4.8405 | D147: 3.4946 | E147: 2.9958 | F147: 2.64 | G147: -0.1507894737 | H147: -0.3869122807 | I147: -0.4744210526 | J147: 0
A148: 2012-01-17 | B148: 4.01 | C148: 4.8745 | D148: 3.5348 | E148: 2.9971 | F148: 2.66005 | G148: 0.2155860349 | H148: -0.1185037406 | I148: -0.2525935162 | J148: 0
A149: 2012-01-18 | B149: 5.18 | C149: 4.964 | D149: 3.5938 | E149: 3.0178 | F149: 2.68595 | G149: -0.0416988417 | H149: -0.3062162162 | I149: -0.4174131274 | J149: 0
A150: 2012-01-19 | B150: 5.32 | C150: 5.0675 | D150: 3.6536 | E150: 3.036 | F150: 2.71255 | G150: -0.04746240602 | H150: -0.3132330827 | I150: -0.4293233083 | J150: 0
A151: 2012-01-20 | B151: 5.23 | C151: 5.1535 | D151: 3.7112 | E151: 3.0583 | F151: 2.7387 | G151: -0.01462715105 | H151: -0.2904015296 | I151: -0.4152390057 | J151: 0
A152: 2012-01-21 | B152: 5.19 | C152: 5.193 | D152: 3.7726 | E152: 3.0822 | F152: 2.76465 | G152: 0.0005780346821 | H152: -0.2731021195 | I152: -0.4061271676 | J152: 0
A153: 2012-01-22 | B153: 4.85 | C153: 5.125 | D153: 3.8208 | E153: 3.0989 | F153: 2.7889 | G153: 0.05670103093 | H153: -0.2122061856 | I153: -0.3610515464 | J153: 0
A154: 2012-01-23 | B154: 5.19 | C154: 5.1985 | D154: 3.8798 | E154: 3.119 | F154: 2.81485 | G154: 0.001637764933 | H154: -0.2524470135 | I154: -0.3990366089 | J154: 0
A155: 2012-01-24 | B155: 4.7 | C155: 5.184 | D155: 3.927 | E155: 3.1343 | F155: 2.83835 | G155: 0.1029787234 | H155: -0.1644680851 | I155: -0.3331276596 | J155: 0
A156: 2012-01-25 | B156: 4.89 | C156: 5.1785 | D156: 3.9788 | E156: 3.1543 | F156: 2.8628 | G156: 0.05899795501 | H156: -0.1863394683 | I156: -0.3549488753 | J156: 0
A157: 2012-01-26 | B157: 3.72 | C157: 5.1145 | D157: 4.0072 | E157: 3.1715 | F157: 2.8814 | G157: 0.3748655914 | H157: 0.07720430108 | I157: -0.1474462366 | J157: 0
A158: 2012-01-27 | B158: 3.95 | C158: 5.0545 | D158: 4.0408 | E158: 3.1841 | F158: 2.90115 | G158: 0.2796202532 | H158: 0.02298734177 | I158: -0.1938987342 | J158: 0
A159: 2012-01-28 | B159: 4.5 | C159: 4.998 | D159: 4.0808 | E159: 3.2046 | F159: 2.92365 | G159: 0.1106666667 | H159: -0.09315555556 | I159: -0.2878666667 | J159: 0
A160: 2012-01-29 | B160: 4.45 | C160: 4.97 | D160: 4.1232 | E160: 3.225 | F160: 2.9459 | G160: 0.1168539326 | H160: -0.07343820225 | I160: -0.2752808989 | J160: 0
A161: 2012-01-30 | B161: 5.4 | C161: 4.98 | D161: 4.185 | E161: 3.255 | F161: 2.9729 | G161: -0.07777777778 | H161: -0.225 | I161: -0.3972222222 | J161: 0
A162: 2012-01-31 | B162: 4.48 | C162: 4.929 | D162: 4.2228 | E162: 3.2742 | F162: 2.9953 | G162: 0.1002232143 | H162: -0.05741071429 | I162: -0.2691517857 | J162: 0
A163: 2012-02-01 | B163: 5 | C163: 4.904 | D163: 4.2712 | E163: 3.2989 | F163: 3.0203 | G163: -0.0192 | H163: -0.14576 | I163: -0.34022 | J163: 0
A164: 2012-02-02 | B164: 4.96 | C164: 4.892 | D164: 4.3224 | E164: 3.3246 | F164: 3.0451 | G164: -0.01370967742 | H164: -0.1285483871 | I164: -0.3297177419 | J164: 0
A165: 2012-02-03 | B165: 4.47 | C165: 4.8445 | D165: 4.3618 | E165: 3.3461 | F165: 3.06745 | G165: 0.08378076063 | H165: -0.02420581655 | I165: -0.2514317673 | J165: 0
A166: 2012-02-04 | B166: 4.6 | C166: 4.7895 | D166: 4.4044 | E166: 3.3677 | F166: 3.09045 | G166: 0.04119565217 | H166: -0.04252173913 | I166: -0.2678913043 | J166: 0
A167: 2012-02-05 | B167: 4.69 | C167: 4.739 | D167: 4.451 | E167: 3.3889 | F167: 3.1139 | G167: 0.01044776119 | H167: -0.05095948827 | I167: -0.2774200426 | J167: 0
A168: 2012-02-06 | B168: 4.6 | C168: 4.7685 | D168: 4.4916 | E168: 3.405 | F168: 3.1369 | G168: 0.03663043478 | H168: -0.02356521739 | I168: -0.2597826087 | J168: 0
A169: 2012-02-07 | B169: 4.19 | C169: 4.719 | D169: 4.5194 | E169: 3.4176 | F169: 3.15785 | G169: 0.1262529833 | H169: 0.07861575179 | I169: -0.1843436754 | J169: 0
A170: 2012-02-08 | B170: 4.94 | C170: 4.7 | D170: 4.5572 | E170: 3.4382 | F170: 3.18255 | G170: -0.04858299595 | H170: -0.07748987854 | I170: -0.3040080972 | J170: 0
A171: 2012-02-09 | B171: 4.7 | C171: 4.6735 | D171: 4.5852 | E171: 3.4622 | F171: 3.20605 | G171: -0.005638297872 | H171: -0.02442553191 | I171: -0.2633617021 | J171: 0
A172: 2012-02-10 | B172: 4.7 | C172: 4.649 | D172: 4.6202 | E172: 3.4812 | F172: 3.22955 | G172: -0.01085106383 | H172: -0.0169787234 | I172: -0.2593191489 | J172: 0
A173: 2012-02-11 | B173: 4.58 | C173: 4.6355 | D173: 4.6468 | E173: 3.5001 | F173: 3.25245 | G173: 0.01211790393 | H173: 0.01458515284 | I173: -0.2357860262 | J173: 0
A174: 2012-02-12 | B174: 4.79 | C174: 4.6155 | D174: 4.681 | E174: 3.524 | F174: 3.2764 | G174: -0.03643006263 | H174: -0.02275574113 | I174: -0.2643006263 | J174: 0
A175: 2012-02-13 | B175: 4.45 | C175: 4.603 | D175: 4.7002 | E175: 3.5417 | F175: 3.29865 | G175: 0.03438202247 | H175: 0.0562247191 | I175: -0.2041123596 | J175: 0
A176: 2012-02-14 | B176: 4.09 | C176: 4.563 | D176: 4.7166 | E176: 3.5572 | F176: 3.3191 | G176: 0.1156479218 | H176: 0.153202934 | I176: -0.1302689487 | J176: 0
A177: 2012-02-15 | B177: 4.09 | C177: 4.5815 | D177: 4.7344 | E177: 3.5724 | F177: 3.33955 | G177: 0.1201711491 | H177: 0.1575550122 | I177: -0.1265525672 | J177: 0
A178: 2012-02-16 | B178: 3.9 | C178: 4.579 | D178: 4.7458 | E178: 3.5854 | F178: 3.35905 | G178: 0.1741025641 | H178: 0.2168717949 | I178: -0.08066666667 | J178: 0
A179: 2012-02-17 | B179: 3.78 | C179: 4.543 | D179: 4.7536 | E179: 3.5976 | F179: 3.37795 | G179: 0.2018518519 | H179: 0.2575661376 | I179: -0.04825396825 | J179: 0
A180: 2012-02-18 | B180: 3.7 | C180: 4.5055 | D180: 4.7626 | E180: 3.6122 | F180: 3.39645 | G180: 0.2177027027 | H180: 0.2871891892 | I180: -0.02372972973 | J180: 0
A181: 2012-02-19 | B181: 3.69 | C181: 4.42 | D181: 4.7662 | E181: 3.624 | F181: 3.4149 | G181: 0.1978319783 | H181: 0.2916531165 | I181: -0.01788617886 | J181: 0
A182: 2012-02-20 | B182: 3.69 | C182: 4.3805 | D182: 4.752 | E182: 3.6374 | F182: 3.43335 | G182: 0.1871273713 | H182: 0.287804878 | I182: -0.01425474255 | J182: 0
A183: 2012-02-21 | B183: 3.97 | C183: 4.329 | D183: 4.7072 | E183: 3.6525 | F183: 3.4532 | G183: 0.09042821159 | H183: 0.1856926952 | I183: -0.07997481108 | J183: 0
A184: 2012-02-22 | B184: 3.8 | C184: 4.271 | D184: 4.7088 | E184: 3.6724 | F184: 3.4722 | G184: 0.1239473684 | H184: 0.2391578947 | I184: -0.03357894737 | J184: 0
A185: 2012-02-23 | B185: 3.61 | C185: 4.228 | D185: 4.6812 | E185: 3.6885 | F185: 3.49025 | G185: 0.1711911357 | H185: 0.2967313019 | I185: 0.02174515235 | J185: 0
A186: 2012-02-24 | B186: 4 | C186: 4.198 | D186: 4.6612 | E186: 3.706 | F186: 3.51025 | G186: 0.0495 | H186: 0.1653 | I186: -0.0735 | J186: 0
A187: 2012-02-25 | B187: 3.94 | C187: 4.1605 | D187: 4.64 | E187: 3.7248 | F187: 3.52995 | G187: 0.05596446701 | H187: 0.1776649746 | I187: -0.05461928934 | J187: 0
A188: 2012-02-26 | B188: 3.5 | C188: 4.1055 | D188: 4.607 | E188: 3.7412 | F188: 3.54745 | G188: 0.173 | H188: 0.3162857143 | I188: 0.06891428571 | J188: 0
A189: 2012-02-27 | B189: 4 | C189: 4.096 | D189: 4.5744 | E189: 3.7609 | F189: 3.56745 | G189: 0.024 | H189: 0.1436 | I189: -0.059775 | J189: 0
A190: 2012-02-28 | B190: 3.75 | C190: 4.0365 | D190: 4.5492 | E190: 3.778 | F190: 3.5862 | G190: 0.0764 | H190: 0.21312 | I190: 0.007466666667 | J190: 0
A191: 2012-02-29 | B191: 3.6 | C191: 3.9815 | D191: 4.5172 | E191: 3.7946 | F191: 3.6042 | G191: 0.1059722222 | H191: 0.2547777778 | I191: 0.05405555556 | J191: 0
A192: 2012-03-01 | B192: 3.8 | C192: 3.9365 | D192: 4.4832 | E192: 3.8131 | F192: 3.6232 | G192: 0.03592105263 | H192: 0.1797894737 | I192: 0.003447368421 | J192: 0
A193: 2012-03-02 | B193: 4 | C193: 3.9075 | D193: 4.4532 | E193: 3.8332 | F193: 3.6432 | G193: -0.023125 | H193: 0.1133 | I193: -0.0417 | J193: 0
A194: 2012-03-03 | B194: 3.7 | C194: 3.853 | D194: 4.4232 | E194: 3.8512 | F194: 3.6617 | G194: 0.04135135135 | H194: 0.1954594595 | I194: 0.04086486486 | J194: 0
A195: 2012-03-04 | B195: 3.62 | C195: 3.8115 | D195: 4.3872 | E195: 3.8664 | F195: 3.6798 | G195: 0.05290055249 | H195: 0.2119337017 | I195: 0.06806629834 | J195: 0
A196: 2012-03-05 | B196: 3.62 | C196: 3.788 | D196: 4.3456 | E196: 3.8826 | F196: 3.6979 | G196: 0.04640883978 | H196: 0.200441989 | I196: 0.07254143646 | J196: 0
A197: 2012-03-06 | B197: 4.1 | C197: 3.7885 | D197: 4.3136 | E197: 3.9041 | F197: 3.7184 | G197: -0.07597560976 | H197: 0.05209756098 | I197: -0.0477804878 | J197: 0
A198: 2012-03-07 | B198: 3.69 | C198: 3.778 | D198: 4.3072 | E198: 3.921 | F198: 3.73685 | G198: 0.02384823848 | H198: 0.1672628726 | I198: 0.06260162602 | J198: 0
A199: 2012-03-08 | B199: 3.97 | C199: 3.7875 | D199: 4.283 | E199: 3.9384 | F199: 3.7567 | G199: -0.0459697733 | H199: 0.07884130982 | I199: -0.007959697733 | J199: 0
A200: 2012-03-09 | B200: 3.96 | C200: 3.8005 | D200: 4.2558 | E200: 3.9547 | F200: 3.7765 | G200: -0.04027777778 | H200: 0.0746969697 | I200: -0.001338383838 | J200: 0
A201: 2012-03-10 | B201: 3.87 | C201: 3.8095 | D201: 4.2286 | E201: 3.9699 | F201: 3.79585 | G201: -0.01563307494 | H201: 0.09266149871 | I201: 0.02581395349 | J201: 0
... 4042 more rows

Sheet Kurse
A2: Datum | B2: Erster | C2: Hoch | D2: Tief | E2: Schlusskurs | F2: Stuecke | G2: Volumen | I2: https://www.ariva.de/xbt-eur_bitcoin_-_euro-kurs/historische_kurse?go=1&boerse_id=163&month=&clean_split=1&clean_bezug=1
A3: 2011-08-25 | B3: 7.65 | C3: 7.65 | D3: 7.65 | E3: 7.65 | F3: 1 | G3: 9
A4: 2011-08-26 | B4: 7.98 | C4: 8 | D4: 7 | E4: 7.5 | F4: 11 | G4: 81
A5: 2011-08-27 | B5: 7.4 | C5: 7.5 | D5: 7.4 | E5: 7.5 | F5: 56 | G5: 420
A6: 2011-08-28 | B6: 7.5 | C6: 7.5 | D6: 6 | E6: 6 | F6: 9 | G6: 54
A7: 2011-08-29 | B7: 7.77 | C7: 7.77 | D7: 6.49 | E7: 6.49 | F7: 5 | G7: 32
A8: 2011-08-30 | B8: 7.95 | C8: 8 | D8: 5.8 | E8: 6.5 | F8: 48 | G8: 312
A9: 2011-08-31 | B9: 6.65 | C9: 7.5 | D9: 6.48 | E9: 6.48 | F9: 100 | G9: 645
A10: 2011-09-01 | B10: 6.2 | C10: 7.8 | D10: 6 | E10: 7.8 | F10: 50 | G10: 390
A11: 2011-09-02 | B11: 7.5 | C11: 8.5 | D11: 5 | E11: 6 | F11: 19 | G11: 114
A12: 2011-09-03 | B12: 6.06 | C12: 6.06 | D12: 6.06 | E12: 6.06 | F12: 6 | G12: 38
A13: 2011-09-04 | B13: 7.5 | C13: 7.5 | D13: 6 | E13: 7.5 | F13: 109 | G13: 817
A14: 2011-09-05 | B14: 5.5 | C14: 5.8 | D14: 5.5 | E14: 5.8 | F14: 10 | G14: 58
A15: 2011-09-06 | B15: 6.34 | C15: 6.8 | D15: 6.34 | E15: 6.8 | F15: 27 | G15: 184
A16: 2011-09-07 | B16: 5.5 | C16: 7.5 | D16: 4 | E16: 4.8 | F16: 66 | G16: 317
A17: 2011-09-08 | B17: 5 | C17: 7.5 | D17: 5 | E17: 5.5 | F17: 114 | G17: 626
A18: 2011-09-09 | B18: 5.6 | C18: 7.5 | D18: 4.85 | E18: 6 | F18: 45 | G18: 273
A19: 2011-09-10 | B19: 6 | C19: 7.5 | D19: 4.3 | E19: 7.5 | F19: 40 | G19: 299
A20: 2011-09-11 | B20: 4.9 | C20: 7.5 | D20: 4.2 | E20: 4.9 | F20: 61 | G20: 297
A21: 2011-09-12 | B21: 4 | C21: 8 | D21: 4 | E21: 4.98 | F21: 91 | G21: 452
A22: 2011-09-13 | B22: 4.9 | C22: 4.9 | D22: 4 | E22: 4.89 | F22: 121 | G22: 592
A23: 2011-09-14 | B23: 4.21 | C23: 10 | D23: 4 | E23: 4.11 | F23: 214 | G23: 878
A24: 2011-09-15 | B24: 4.2 | C24: 6.9 | D24: 3.6 | E24: 3.8 | F24: 195 | G24: 741
A25: 2011-09-16 | B25: 4.39 | C25: 9 | D25: 3 | E25: 4.34 | F25: 373 | G25: 1619
A26: 2011-09-17 | B26: 4.1 | C26: 7 | D26: 3.7 | E26: 3.7 | F26: 229 | G26: 847
A27: 2011-09-18 | B27: 3.9 | C27: 9 | D27: 3.9 | E27: 4.1 | F27: 190 | G27: 779
A28: 2011-09-19 | B28: 3.65 | C28: 6.79 | D28: 3.5 | E28: 3.95 | F28: 178 | G28: 703
A29: 2011-09-20 | B29: 4 | C29: 5.09 | D29: 2.03 | E29: 4.2 | F29: 834 | G29: 3502
A30: 2011-09-21 | B30: 5 | C30: 8.5 | D30: 4 | E30: 5 | F30: 386 | G30: 1928
A31: 2011-09-22 | B31: 6.29 | C31: 6.29 | D31: 3.5 | E31: 4 | F31: 324 | G31: 1294
A32: 2011-09-23 | B32: 4.5 | C32: 4.9 | D32: 4.1 | E32: 4.1 | F32: 57 | G32: 234
A33: 2011-09-24 | B33: 4 | C33: 4.49 | D33: 3.9 | E33: 3.9 | F33: 93 | G33: 363
A34: 2011-09-25 | B34: 3.9 | C34: 4.49 | D34: 3.9 | E34: 4.43 | F34: 50 | G34: 222
A35: 2011-09-26 | B35: 3.9 | C35: 4.89 | D35: 3.9 | E35: 4.89 | F35: 23 | G35: 113
A36: 2011-09-27 | B36: 3.8 | C36: 4.98 | D36: 3.79 | E36: 4.38 | F36: 87 | G36: 381
A37: 2011-09-28 | B37: 4.38 | C37: 4.9 | D37: 3.5 | E37: 4.29 | F37: 234 | G37: 1005
A38: 2011-09-29 | B38: 4.37 | C38: 4.37 | D38: 3.59 | E38: 4.19 | F38: 340 | G38: 1424
A39: 2011-09-30 | B39: 3.76 | C39: 4.36 | D39: 3.2 | E39: 4.36 | F39: 95 | G39: 414
A40: 2011-10-01 | B40: 3.9 | C40: 4.35 | D40: 3.8 | E40: 3.85 | F40: 230 | G40: 886
A41: 2011-10-02 | B41: 3.67 | C41: 4.35 | D41: 3.67 | E41: 3.7 | F41: 95 | G41: 352
A42: 2011-10-03 | B42: 4.18 | C42: 4.37 | D42: 3.7 | E42: 3.8 | F42: 481 | G42: 1828
A43: 2011-10-04 | B43: 4.09 | C43: 4.29 | D43: 3.75 | E43: 3.75 | F43: 172 | G43: 645
A44: 2011-10-05 | B44: 4.19 | C44: 4.19 | D44: 3.5 | E44: 3.5 | F44: 177 | G44: 620
A45: 2011-10-06 | B45: 4 | C45: 4.17 | D45: 2.11 | E45: 3.7 | F45: 201 | G45: 744
A46: 2011-10-07 | B46: 4.08 | C46: 10 | D46: 3 | E46: 3.75 | F46: 133 | G46: 498
A47: 2011-10-08 | B47: 3.5 | C47: 4 | D47: 3.4 | E47: 3.98 | F47: 67 | G47: 268
A48: 2011-10-09 | B48: 3.9 | C48: 3.9 | D48: 2.55 | E48: 3.88 | F48: 40 | G48: 155
A49: 2011-10-10 | B49: 3.9 | C49: 4.2 | D49: 3.1 | E49: 3.11 | F49: 72 | G49: 225
A50: 2011-10-11 | B50: 3.8 | C50: 3.84 | D50: 2.01 | E50: 3.5 | F50: 334 | G50: 1170
A51: 2011-10-12 | B51: 3.6 | C51: 3.6 | D51: 3 | E51: 3 | F51: 460 | G51: 1379
A52: 2011-10-13 | B52: 2.9 | C52: 3.32 | D52: 2.8 | E52: 2.8 | F52: 304 | G52: 851
A53: 2011-10-14 | B53: 3.23 | C53: 3.23 | D53: 2.91 | E53: 3.18 | F53: 201 | G53: 638
A54: 2011-10-15 | B54: 3 | C54: 3.18 | D54: 3 | E54: 3.18 | F54: 58 | G54: 184
A55: 2011-10-16 | B55: 3.29 | C55: 3.29 | D55: 2.6 | E55: 3.17 | F55: 55 | G55: 174
A56: 2011-10-17 | B56: 3.14 | C56: 3.3 | D56: 2 | E56: 2.89 | F56: 284 | G56: 820
A57: 2011-10-18 | B57: 2.8 | C57: 2.8 | D57: 2 | E57: 2 | F57: 468 | G57: 936
A58: 2011-10-19 | B58: 2.49 | C58: 2.79 | D58: 1.61 | E58: 2.69 | F58: 427 | G58: 1149
A59: 2011-10-20 | B59: 2.1 | C59: 2.6 | D59: 2.08 | E59: 2.45 | F59: 753 | G59: 1845
A60: 2011-10-21 | B60: 2.1 | C60: 3.32 | D60: 2 | E60: 2.41 | F60: 790 | G60: 1904
A61: 2011-10-22 | B61: 2.4 | C61: 2.6 | D61: 2.1 | E61: 2.4 | F61: 1057 | G61: 2537
A62: 2011-10-23 | B62: 2.59 | C62: 2.6 | D62: 2.29 | E62: 2.56 | F62: 527 | G62: 1349
A63: 2011-10-24 | B63: 3.5 | C63: 3.5 | D63: 2.01 | E63: 2.53 | F63: 425 | G63: 1076
A64: 2011-10-25 | B64: 2.3 | C64: 2.8 | D64: 1.85 | E64: 2.39 | F64: 518 | G64: 1239
A65: 2011-10-26 | B65: 2.38 | C65: 2.6 | D65: 1.8 | E65: 2.32 | F65: 527 | G65: 1223
A66: 2011-10-27 | B66: 2.31 | C66: 2.49 | D66: 2 | E66: 2.44 | F66: 761 | G66: 1857
A67: 2011-10-28 | B67: 2.29 | C67: 2.59 | D67: 2.15 | E67: 2.57 | F67: 453 | G67: 1164
A68: 2011-10-29 | B68: 2.57 | C68: 3.49 | D68: 2.1 | E68: 2.99 | F68: 3101 | G68: 9273
A69: 2011-10-30 | B69: 3 | C69: 3 | D69: 2.4 | E69: 2.93 | F69: 1052 | G69: 3083
A70: 2011-10-31 | B70: 2.89 | C70: 2.89 | D70: 2.51 | E70: 2.88 | F70: 1196 | G70: 3444
A71: 2011-11-01 | B71: 2.75 | C71: 2.88 | D71: 2.3 | E71: 2.3 | F71: 3049 | G71: 7013
A72: 2011-11-02 | B72: 2.68 | C72: 3 | D72: 2.01 | E72: 2.8 | F72: 1592 | G72: 4459
A73: 2011-11-03 | B73: 2.8 | C73: 2.8 | D73: 2.09 | E73: 2.69 | F73: 629 | G73: 1692
A74: 2011-11-04 | B74: 2.35 | C74: 2.8 | D74: 2.35 | E74: 2.4 | F74: 2052 | G74: 4924
A75: 2011-11-05 | B75: 2.46 | C75: 2.72 | D75: 2.11 | E75: 2.68 | F75: 855 | G75: 2293
A76: 2011-11-06 | B76: 2.36 | C76: 2.64 | D76: 2.35 | E76: 2.54 | F76: 779 | G76: 1979
A77: 2011-11-07 | B77: 2.57 | C77: 2.68 | D77: 2.2 | E77: 2.57 | F77: 895 | G77: 2300
A78: 2011-11-08 | B78: 2.9 | C78: 3.33 | D78: 2.29 | E78: 2.6 | F78: 3303 | G78: 8588
A79: 2011-11-09 | B79: 2.5 | C79: 2.85 | D79: 2.2 | E79: 2.56 | F79: 4108 | G79: 10515
A80: 2011-11-10 | B80: 2.21 | C80: 2.55 | D80: 2.21 | E80: 2.24 | F80: 1081 | G80: 2420
A81: 2011-11-11 | B81: 2.7 | C81: 3 | D81: 1.8 | E81: 2.51 | F81: 2522 | G81: 6329
A82: 2011-11-12 | B82: 2.14 | C82: 2.59 | D82: 2.02 | E82: 2.35 | F82: 5690 | G82: 13372
A83: 2011-11-13 | B83: 2.45 | C83: 2.5 | D83: 2.15 | E83: 2.46 | F83: 5674 | G83: 13959
A84: 2011-11-14 | B84: 2.2 | C84: 2.5 | D84: 1.81 | E84: 1.81 | F84: 2792 | G84: 5053
A85: 2011-11-15 | B85: 2.22 | C85: 3 | D85: 1.71 | E85: 2 | F85: 6815 | G85: 13631
A86: 2011-11-16 | B86: 2.5 | C86: 2.69 | D86: 1.85 | E86: 2.25 | F86: 5579 | G86: 12553
A87: 2011-11-17 | B87: 2.1 | C87: 2.47 | D87: 1.81 | E87: 2.06 | F87: 1875 | G87: 3863
A88: 2011-11-18 | B88: 2.06 | C88: 2.2 | D88: 1.86 | E88: 1.86 | F88: 2777 | G88: 5166
A89: 2011-11-19 | B89: 1.75 | C89: 2.48 | D89: 1.71 | E89: 2.03 | F89: 2381 | G89: 4834
A90: 2011-11-20 | B90: 2.03 | C90: 2.2 | D90: 1.87 | E90: 2.04 | F90: 1142 | G90: 2330
A91: 2011-11-21 | B91: 2.05 | C91: 2.16 | D91: 1.71 | E91: 1.94 | F91: 1573 | G91: 3051
A92: 2011-11-22 | B92: 2.05 | C92: 2.4 | D92: 1.81 | E92: 1.95 | F92: 1251 | G92: 2439
A93: 2011-11-23 | B93: 1.88 | C93: 2.1 | D93: 1.86 | E93: 1.99 | F93: 1500 | G93: 2986
A94: 2011-11-24 | B94: 2.05 | C94: 2.35 | D94: 1.84 | E94: 1.9 | F94: 1082 | G94: 2055
A95: 2011-11-25 | B95: 1.99 | C95: 2.35 | D95: 1.88 | E95: 2.1 | F95: 1071 | G95: 2249
A96: 2011-11-26 | B96: 2 | C96: 2.15 | D96: 1.9 | E96: 2 | F96: 992 | G96: 1984
A97: 2011-11-27 | B97: 2.24 | C97: 2.39 | D97: 1.9 | E97: 1.95 | F97: 1470 | G97: 2866
A98: 2011-11-28 | B98: 1.95 | C98: 2.15 | D98: 1.87 | E98: 2 | F98: 3129 | G98: 6258
A99: 2011-11-29 | B99: 2.05 | C99: 2.48 | D99: 1.95 | E99: 2.23 | F99: 2746 | G99: 6123
A100: 2011-11-30 | B100: 2.23 | C100: 2.45 | D100: 2 | E100: 2.33 | F100: 1283 | G100: 2990
A101: 2011-12-01 | B101: 2.17 | C101: 2.49 | D101: 2.12 | E101: 2.35 | F101: 1371 | G101: 3222
A102: 2011-12-02 | B102: 2.2 | C102: 2.49 | D102: 2.12 | E102: 2.12 | F102: 1876 | G102: 3976
A103: 2011-12-03 | B103: 2.69 | C103: 2.94 | D103: 2.15 | E103: 2.44 | F103: 1241 | G103: 3028
A104: 2011-12-04 | B104: 2.42 | C104: 4 | D104: 2.15 | E104: 2.24 | F104: 3653 | G104: 8183
A105: 2011-12-05 | B105: 2.2 | C105: 4 | D105: 2.05 | E105: 2.34 | F105: 10895 | G105: 25495
A106: 2011-12-06 | B106: 2.39 | C106: 2.41 | D106: 2.15 | E106: 2.3 | F106: 3574 | G106: 8220
A107: 2011-12-07 | B107: 2.38 | C107: 4.7 | D107: 2.29 | E107: 2.3 | F107: 2482 | G107: 5708
A108: 2011-12-08 | B108: 2.37 | C108: 2.42 | D108: 2.26 | E108: 2.27 | F108: 3742 | G108: 8494
A109: 2011-12-09 | B109: 2.35 | C109: 3 | D109: 2.34 | E109: 2.5 | F109: 4714 | G109: 11786
A110: 2011-12-10 | B110: 2.4 | C110: 2.41 | D110: 2.25 | E110: 2.33 | F110: 1391 | G110: 3241
A111: 2011-12-11 | B111: 2.37 | C111: 2.69 | D111: 2.27 | E111: 2.31 | F111: 1242 | G111: 2868
A112: 2011-12-12 | B112: 2.37 | C112: 2.6 | D112: 2.27 | E112: 2.59 | F112: 4054 | G112: 10499
A113: 2011-12-13 | B113: 2.69 | C113: 2.87 | D113: 2.32 | E113: 2.58 | F113: 18388 | G113: 47441
A114: 2011-12-14 | B114: 2.58 | C114: 4 | D114: 2.4 | E114: 2.4 | F114: 3547 | G114: 8513
A115: 2011-12-15 | B115: 2.4 | C115: 3 | D115: 2.37 | E115: 2.5 | F115: 3765 | G115: 9411
A116: 2011-12-16 | B116: 2.41 | C116: 2.69 | D116: 2.31 | E116: 2.47 | F116: 5761 | G116: 14229
A117: 2011-12-17 | B117: 2.47 | C117: 2.62 | D117: 2.31 | E117: 2.36 | F117: 4930 | G117: 11635
A118: 2011-12-18 | B118: 2.3 | C118: 2.61 | D118: 2.3 | E118: 2.57 | F118: 536 | G118: 1377
A119: 2011-12-19 | B119: 2.58 | C119: 2.97 | D119: 2.37 | E119: 2.8 | F119: 3047 | G119: 8532
A120: 2011-12-20 | B120: 2.76 | C120: 3.98 | D120: 2.6 | E120: 3.05 | F120: 6192 | G120: 18886
A121: 2011-12-21 | B121: 2.81 | C121: 4 | D121: 2.7 | E121: 3.3 | F121: 4724 | G121: 15589
A122: 2011-12-22 | B122: 2.99 | C122: 3.22 | D122: 2.77 | E122: 2.95 | F122: 1844 | G122: 5439
A123: 2011-12-23 | B123: 3 | C123: 3.25 | D123: 2.7 | E123: 3.25 | F123: 538 | G123: 1750
A124: 2011-12-24 | B124: 3.07 | C124: 3.15 | D124: 2.8 | E124: 3.08 | F124: 1051 | G124: 3238
A125: 2011-12-25 | B125: 3 | C125: 5 | D125: 3 | E125: 3.49 | F125: 3061 | G125: 10683
A126: 2011-12-26 | B126: 3.5 | C126: 3.5 | D126: 3.1 | E126: 3.27 | F126: 3784 | G126: 12375
A127: 2011-12-27 | B127: 3.26 | C127: 3.5 | D127: 3.05 | E127: 3.2 | F127: 2643 | G127: 8458
A128: 2011-12-28 | B128: 5.2 | C128: 5.2 | D128: 2.8 | E128: 3.33 | F128: 4228 | G128: 14078
A129: 2011-12-29 | B129: 3.24 | C129: 3.39 | D129: 3 | E129: 3.39 | F129: 3220 | G129: 10914
A130: 2011-12-30 | B130: 3.33 | C130: 3.81 | D130: 3.2 | E130: 3.25 | F130: 6411 | G130: 20836
A131: 2011-12-31 | B131: 3.33 | C131: 4.8 | D131: 3.33 | E131: 3.51 | F131: 4323 | G131: 15174
A132: 2012-01-01 | B132: 3.85 | C132: 4.8 | D132: 3.7 | E132: 4.4 | F132: 5362 | G132: 23591
A133: 2012-01-02 | B133: 4.38 | C133: 6.21 | D133: 3.7 | E133: 6.21 | F133: 7183 | G133: 44604
A134: 2012-01-03 | B134: 4.25 | C134: 5.3 | D134: 3.62 | E134: 3.72 | F134: 4793 | G134: 17830
A135: 2012-01-04 | B135: 3.63 | C135: 5 | D135: 3.25 | E135: 4.99 | F135: 1629 | G135: 8131
A136: 2012-01-05 | B136: 5.49 | C136: 8 | D136: 3.33 | E136: 5 | F136: 4181 | G136: 20903
A137: 2012-01-06 | B137: 5 | C137: 5.94 | D137: 3.6 | E137: 5 | F137: 3633 | G137: 18163
A138: 2012-01-07 | B138: 5 | C138: 6.2 | D138: 4.33 | E138: 5.15 | F138: 1879 | G138: 9677
A139: 2012-01-08 | B139: 5.28 | C139: 6 | D139: 4.2 | E139: 5.63 | F139: 3142 | G139: 17691
A140: 2012-01-09 | B140: 5 | C140: 5.9 | D140: 4.75 | E140: 5.01 | F140: 4635 | G140: 23220
A141: 2012-01-10 | B141: 4.95 | C141: 5.85 | D141: 4.5 | E141: 5.2 | F141: 3439 | G141: 17882
A142: 2012-01-11 | B142: 5.3 | C142: 5.94 | D142: 3.33 | E142: 5.5 | F142: 1883 | G142: 10357
A143: 2012-01-12 | B143: 5.21 | C143: 5.84 | D143: 4.9 | E143: 5.5 | F143: 1722 | G143: 9471
A144: 2012-01-13 | B144: 5.7 | C144: 5.75 | D144: 4.54 | E144: 5.2 | F144: 2505 | G144: 13023
A145: 2012-01-14 | B145: 5 | C145: 5.63 | D145: 4.4 | E145: 5.42 | F145: 705 | G145: 3823
A146: 2012-01-15 | B146: 5.57 | C146: 5.7 | D146: 5 | E146: 5.7 | F146: 4577 | G146: 26091
A147: 2012-01-16 | B147: 5.65 | C147: 6.74 | D147: 5 | E147: 5.7 | F147: 1874 | G147: 10680
A148: 2012-01-17 | B148: 5.2 | C148: 5.89 | D148: 4 | E148: 4.01 | F148: 2501 | G148: 10029
A149: 2012-01-18 | B149: 5.2 | C149: 5.89 | D149: 4 | E149: 5.18 | F149: 5782 | G149: 29950
A150: 2012-01-19 | B150: 5.25 | C150: 5.45 | D150: 4 | E150: 5.32 | F150: 2982 | G150: 15862
A151: 2012-01-20 | B151: 4.99 | C151: 9.5 | D151: 4 | E151: 5.23 | F151: 2899 | G151: 15163
A152: 2012-01-21 | B152: 5 | C152: 6.45 | D152: 4.7 | E152: 5.19 | F152: 801 | G152: 4158
A153: 2012-01-22 | B153: 5.27 | C153: 6 | D153: 4.7 | E153: 4.85 | F153: 1630 | G153: 7903
A154: 2012-01-23 | B154: 5.2 | C154: 5.85 | D154: 4.5 | E154: 5.19 | F154: 1142 | G154: 5924
A155: 2012-01-24 | B155: 4.95 | C155: 5.5 | D155: 4.61 | E155: 4.7 | F155: 675 | G155: 3173
A156: 2012-01-25 | B156: 4.8 | C156: 5.3 | D156: 4.05 | E156: 4.89 | F156: 1765 | G156: 8632
A157: 2012-01-26 | B157: 4.89 | C157: 5.15 | D157: 3.51 | E157: 3.72 | F157: 1586 | G157: 5899
A158: 2012-01-27 | B158: 3.95 | C158: 5.49 | D158: 3.5 | E158: 3.95 | F158: 2246 | G158: 8872
A159: 2012-01-28 | B159: 3.8 | C159: 5.5 | D159: 3.7 | E159: 4.5 | F159: 2442 | G159: 10991
A160: 2012-01-29 | B160: 4.74 | C160: 4.9 | D160: 3.81 | E160: 4.45 | F160: 3238 | G160: 14410
A161: 2012-01-30 | B161: 4.45 | C161: 5.89 | D161: 4 | E161: 5.4 | F161: 970 | G161: 5238
A162: 2012-01-31 | B162: 4.79 | C162: 5.35 | D162: 3.99 | E162: 4.48 | F162: 3412 | G162: 15287
A163: 2012-02-01 | B163: 4.89 | C163: 5.99 | D163: 3.5 | E163: 5 | F163: 8043 | G163: 40217
A164: 2012-02-02 | B164: 4.99 | C164: 5.99 | D164: 4.45 | E164: 4.96 | F164: 1948 | G164: 9660
A165: 2012-02-03 | B165: 5.05 | C165: 5.05 | D165: 4 | E165: 4.47 | F165: 1840 | G165: 8226
A166: 2012-02-04 | B166: 4.9 | C166: 7.8 | D166: 4 | E166: 4.6 | F166: 3458 | G166: 15909
A167: 2012-02-05 | B167: 5.15 | C167: 5.8 | D167: 4.21 | E167: 4.69 | F167: 1274 | G167: 5975
A168: 2012-02-06 | B168: 4.7 | C168: 5.4 | D168: 4 | E168: 4.6 | F168: 1424 | G168: 6548
A169: 2012-02-07 | B169: 4.99 | C169: 5.28 | D169: 4.19 | E169: 4.19 | F169: 2314 | G169: 9695
A170: 2012-02-08 | B170: 5.3 | C170: 5.5 | D170: 3.68 | E170: 4.94 | F170: 3328 | G170: 16440
A171: 2012-02-09 | B171: 4.58 | C171: 5.8 | D171: 4.2 | E171: 4.7 | F171: 2326 | G171: 10932
A172: 2012-02-10 | B172: 4.77 | C172: 4.99 | D172: 4.35 | E172: 4.7 | F172: 2052 | G172: 9647
A173: 2012-02-11 | B173: 4.64 | C173: 5 | D173: 3.73 | E173: 4.58 | F173: 2437 | G173: 11159
A174: 2012-02-12 | B174: 4.64 | C174: 5.62 | D174: 4.1 | E174: 4.79 | F174: 1858 | G174: 8902
A175: 2012-02-13 | B175: 4.69 | C175: 4.99 | D175: 3.9 | E175: 4.45 | F175: 3491 | G175: 15537
A176: 2012-02-14 | B176: 4.53 | C176: 5 | D176: 3.5 | E176: 4.09 | F176: 5343 | G176: 21855
A177: 2012-02-15 | B177: 4 | C177: 4.9 | D177: 3.3 | E177: 4.09 | F177: 4972 | G177: 20336
A178: 2012-02-16 | B178: 4 | C178: 5.21 | D178: 3.21 | E178: 3.9 | F178: 3992 | G178: 15568
A179: 2012-02-17 | B179: 3.9 | C179: 17.14 | D179: 3 | E179: 3.78 | F179: 3374 | G179: 12754
A180: 2012-02-18 | B180: 3.77 | C180: 5 | D180: 3.25 | E180: 3.7 | F180: 4357 | G180: 16119
A181: 2012-02-19 | B181: 3.69 | C181: 4.24 | D181: 3 | E181: 3.69 | F181: 5221 | G181: 19265
A182: 2012-02-20 | B182: 3.69 | C182: 4.18 | D182: 3.49 | E182: 3.69 | F182: 3445 | G182: 12713
A183: 2012-02-21 | B183: 3.68 | C183: 4.7 | D183: 3.25 | E183: 3.97 | F183: 2943 | G183: 11682
A184: 2012-02-22 | B184: 4 | C184: 4.72 | D184: 3.25 | E184: 3.8 | F184: 2282 | G184: 8671
A185: 2012-02-23 | B185: 3.5 | C185: 4.73 | D185: 3.3 | E185: 3.61 | F185: 3428 | G185: 12374
A186: 2012-02-24 | B186: 3.7 | C186: 4.18 | D186: 3.58 | E186: 4 | F186: 1553 | G186: 6213
A187: 2012-02-25 | B187: 3.7 | C187: 5 | D187: 3.34 | E187: 3.94 | F187: 972 | G187: 3831
A188: 2012-02-26 | B188: 3.5 | C188: 5.3 | D188: 3.5 | E188: 3.5 | F188: 1427 | G188: 4994
A189: 2012-02-27 | B189: 3.81 | C189: 9.71 | D189: 3.2 | E189: 4 | F189: 3884 | G189: 15536
A190: 2012-02-28 | B190: 4.5 | C190: 6 | D190: 3 | E190: 3.75 | F190: 2978 | G190: 11168
A191: 2012-02-29 | B191: 4 | C191: 5.38 | D191: 3.6 | E191: 3.6 | F191: 2407 | G191: 8665
A192: 2012-03-01 | B192: 3.9 | C192: 4.25 | D192: =(D191+D193)/2 -> 3.555 | E192: =(E191+E193)/2 -> 3.8 | F192: 2390 | G192: 2390
A193: 2012-03-02 | B193: 3.96 | C193: 4.73 | D193: 3.51 | E193: 4 | F193: 6227 | G193: 24908
A194: 2012-03-03 | B194: 3.62 | C194: 4.5 | D194: 3.5 | E194: 3.7 | F194: 1383 | G194: 5117
A195: 2012-03-04 | B195: 3.89 | C195: 4.7 | D195: 3.51 | E195: 3.62 | F195: 2504 | G195: 9066
A196: 2012-03-05 | B196: 3.9 | C196: 4.7 | D196: 3.55 | E196: 3.62 | F196: 2847 | G196: 10306
A197: 2012-03-06 | B197: 3.7 | C197: 4.5 | D197: 3.6 | E197: 4.1 | F197: 5099 | G197: 20907
A198: 2012-03-07 | B198: 3.65 | C198: 5.7 | D198: 3.5 | E198: 3.69 | F198: 7785 | G198: 28726
A199: 2012-03-08 | B199: 4.2 | C199: 5.55 | D199: 3.66 | E199: 3.97 | F199: 6050 | G199: 24020
A200: 2012-03-09 | B200: 3.94 | C200: 5.1 | D200: 3.51 | E200: 3.96 | F200: 4630 | G200: 18337
A201: 2012-03-10 | B201: 4 | C201: 5.7 | D201: 3.7 | E201: 3.87 | F201: 3801 | G201: 14708
... 4042 more rows
